Cogmind - Beta 10.2 @@@ ROGUE MODE // 2021.08.12 @ 01:26:23 Player: Savant Result: Escaped! Performance ------------- Evolutions (9) 4500 Regions Visited (33) 6600 Robots Destroyed (352) 1760 Value Destroyed (21760) 21760 Prototype IDs (61) 1220 Alien Tech Used (0) 0 Bonus (21374) 21374 TOTAL SCORE: 57214 Bonus ------- Triggered High Security 500 High Alert Combat Kills 3061 Follower Combat Kills 7468 Entered Garrisons 2200 Used RIF Installer 5500 Aligned with FarCom 300 Win 3000 Friendly Fire -655 Cogmind --------- Core Integrity 1542/1600 Matter 55/300 Energy 1013/1350 System Corruption 0% Temperature Cool (6) Movement Treading (165) Ox1 Location To Epsilon Eridani Parts ------- > --- POWER (1) -------- Reinforced Quantum Reactor > --- PROPULSION (4) --- Biometal Heavy Treads Biometal Heavy Treads > --- UTILITY (18) ----- Advanced Heat Sink Large Storage Unit High-capacity Storage Unit High-capacity Storage Unit High-capacity Storage Unit High-capacity Storage Unit Experimental Energy Well Experimental Power Shielding Experimental Power Shielding Remote Force Field Antimissile System Advanced Hacking Suite Relay Coupler [NC] (5) Relay Coupler [C] (2) Relay Coupler [C] (37) Relay Coupler [Sentry] (9) Relay Coupler [Demolisher] (10) Relay Coupler [Behemoth] (7) > --- WEAPON (2) ------- Neutron Missile Launcher Advanced Remote Datajack > --- INVENTORY (42) --- Quantum Reactor Reinforced Quantum Reactor Improved Heavy Treads Experimental Energy Well (870) Experimental Energy Well (0) Matter Compressor (250) Advanced Signal Interpreter Advanced Launcher Guidance Computer Propulsion Shielding Advanced Force Field Relay Coupler [NC] (29) Relay Coupler [NC] (29) Relay Coupler [NC] (33) Relay Coupler [NC] (32) Relay Coupler [C] (33) Relay Coupler [C] (33) Relay Coupler [C] (32) Relay Coupler [C] (29) Relay Coupler [C] (32) Relay Coupler [C] (29) Relay Coupler [C] (26) Relay Coupler [Specialist] (37) Relay Coupler [Specialist] (23) Improved System Backup Module Gamma Rifle Compact HERF Cannon Nova Cannon Nova Cannon Enhanced Nova Cannon Enhanced Nova Cannon Helical Railgun Gamma Bomb Array Advanced Datajack Advanced Remote Datajack Field Lobotomy Kit Plasma Sword Force Lance Peak State ------------ > --- POWER ------------ Reinforced Quantum Reactor > --- PROPULSION ------- Biometal Heavy Treads Biometal Heavy Treads > --- UTILITY ---------- Advanced Heat Sink Large Storage Unit High-capacity Storage Unit High-capacity Storage Unit High-capacity Storage Unit High-capacity Storage Unit Experimental Energy Well Experimental Power Shielding Experimental Power Shielding Remote Force Field Antimissile System Advanced Hacking Suite Relay Coupler [NC] Relay Coupler [C] Relay Coupler [C] Relay Coupler [Sentry] Relay Coupler [Demolisher] Relay Coupler [Behemoth] > --- WEAPON ----------- Enhanced Nova Cannon Advanced Remote Datajack > --- INVENTORY -------- Quantum Reactor Reinforced Quantum Reactor Improved Heavy Treads Experimental Energy Well Experimental Energy Well Matter Compressor Advanced Signal Interpreter Advanced Launcher Guidance Computer Propulsion Shielding Advanced Force Field Relay Coupler [NC] Relay Coupler [NC] Relay Coupler [NC] Relay Coupler [NC] Relay Coupler [C] Relay Coupler [C] Relay Coupler [C] Relay Coupler [C] Relay Coupler [C] Relay Coupler [C] Relay Coupler [C] Relay Coupler [Specialist] Relay Coupler [Specialist] Improved System Backup Module Gamma Rifle Compact HERF Cannon Nova Cannon Nova Cannon Enhanced Nova Cannon Helical Railgun Gamma Bomb Array Neutron Missile Launcher Advanced Datajack Advanced Remote Datajack Field Lobotomy Kit Plasma Sword Force Lance [Rating: 170] Favorites ----------- Power Antimatter Reactor Engine Ion Engine Power Core Reinforced Fission Core Reactor Antimatter Reactor Propulsion Armored Huge Wheel Treads Heavy Treads Leg Improved Carbon-fiber Leg Wheel Armored Huge Wheel Utility High-capacity Storage Unit Device Advanced Heat Sink Storage High-capacity Storage Unit Processor Advanced Targeting Computer Hackware Relay Coupler [NC] Protection Layered Medium Armor Plating Weapon Advanced Remote Datajack Energy Gun Improved Medium Laser Energy Cannon Cooled Plasma Cannon Ballistic Gun Enhanced Autogun Ballistic Cannon Magnetic Acceleration Cannon Launcher Smartbomb Launcher Special Weapon Advanced Remote Datajack Impact Weapon Great Maul Slashing Weapon Plasma Sword Piercing Weapon Force Lance Special Melee Weapon Advanced Datajack Build | -11 -10 -10 -9 -9 -9 -8 -8 -8 -8 -8 -7 -7 -7 -7 -7 -7 -6 -6 -6 -6 -5 -5 -5 -5 -4 -4 -3 -3 -3 -3 -2 -2 -1 ------- Run | Scr Mat Min Mat Min Exi Min Mat Gar Mat Gar Fac Was Fac Gar Fac Gar Fac Was Fac Gar Fac Gar Fac Gar Fac Gar Res Gar Res Gar Res Gar Acc Slots Evolved 18 | . . . 2 . . . 2 . . . 2 . . . . . 2 . . . 2 . . . 2 . 2 . . . 2 . 2 Power . | . . . . . . . . . . . . . . . . . . . . . . . . . . . . . . . . . . Propulsion 2 | . . . . . . . 1 . . . . . . . . . 1 . . . . . . . . . . . . . . . . Utility 16 | . . . 2 . . . 1 . . . 2 . . . . . 1 . . . 2 . . . 2 . 2 . . . 2 . 2 Weapon . | . . . . . . . . . . . . . . . . . . . . . . . . . . . . . . . . . . Parts Attached 734 | 6 6 17 15 3 2 3 8 20 27 17 59 16 . 14 23 28 2 3 9 19 28 24 30 20 57 27 50 31 48 20 43 28 31 Power 32 | 1 . 1 1 . . . 1 1 4 3 3 1 . . . 1 . 1 . . . 1 1 1 1 1 2 . 4 . 3 . . Engine 7 | 1 . 1 1 . . . . . . . 3 . . . . 1 . . . . . . . . . . . . . . . . . Core 14 | . . . . . . . 1 1 4 3 . . . . . . . . . . . 1 1 1 1 . . . 1 . . . . Reactor 11 | . . . . . . . . . . . . 1 . . . . . 1 . . . . . . . 1 2 . 3 . 3 . . Propulsion 71 | 2 3 10 2 . . 1 1 2 7 5 10 2 . 1 2 . 1 . . 1 1 1 . . 4 . 3 3 4 . 1 2 2 Treads 41 | . 1 5 1 . . . . 2 6 3 2 . . 1 1 . . . . 1 1 . . . 2 . 3 3 4 . 1 2 2 Leg 11 | . . . . . . . 1 . . 2 7 1 . . . . . . . . . . . . . . . . . . . . . Wheel 19 | 2 2 5 1 . . 1 . . 1 . 1 1 . . 1 . 1 . . . . 1 . . 2 . . . . . . . . Hover . | . . . . . . . . . . . . . . . . . . . . . . . . . . . . . . . . . . Flight . | . . . . . . . . . . . . . . . . . . . . . . . . . . . . . . . . . . Utility 277 | 1 2 3 3 1 . . 1 6 7 4 20 2 . 6 5 9 1 . 2 6 12 6 13 7 27 11 26 17 18 12 17 13 19 Device 116 | . . 3 2 . . . 1 2 3 3 8 . . 1 . . . . . 1 4 . 1 . 12 4 14 11 17 7 10 6 6 Storage 27 | 1 1 . 1 . . . . 1 1 . 2 1 . 1 1 1 . . . 1 . . 4 1 . 1 2 3 1 . . . 3 Processor 3 | . . . . . . . . . 1 . . . . . . . . . . . . . . . . . 1 . . . 1 . . Hackware 83 | . . . . . . . . . . . 8 1 . 2 3 6 1 . 1 3 5 3 5 5 6 4 6 3 . 4 6 5 6 Protection 48 | . 1 . . 1 . . . 3 2 1 2 . . 2 1 2 . . 1 1 3 3 3 1 9 2 3 . . 1 . 2 4 Artifact . | . . . . . . . . . . . . . . . . . . . . . . . . . . . . . . . . . . Weapon 354 | 2 1 3 9 2 2 2 5 11 9 5 26 11 . 7 16 18 . 2 7 12 15 16 16 12 25 15 19 11 22 8 22 13 10 Energy Gun 48 | 1 . 1 7 1 1 1 3 7 2 . 1 . . 1 . . . . 1 2 1 . 1 . 2 1 3 4 1 . 5 1 . Energy Cannon 76 | . 1 2 . . . . . . 2 . 8 5 . . . . . . . . 6 6 5 2 5 2 6 2 11 4 5 2 2 Ballistic Gun 33 | 1 . . . . . . . . 3 4 5 . . . . . . . . . . . 2 2 4 2 2 . 1 . 4 2 1 Ballistic Cannon 24 | . . . . . . . . . . . . . . 3 6 9 . 1 1 2 2 . . . . . . . . . . . . Launcher 36 | . . . 2 1 . 1 . 1 . 1 2 2 . 1 1 4 . 1 . 2 1 4 2 1 2 1 . . 2 1 . . 3 Special Weapon 90 | . . . . . 1 . . . . . 3 4 . 2 6 4 . . 3 3 5 6 5 6 10 4 6 4 4 3 4 3 4 Impact Weapon 5 | . . . . . . . . . . . 1 . . . 3 . . . . . . . . . . . . . 1 . . . . Slashing Weapon 27 | . . . . . . . 2 3 2 . 6 . . . . 1 . . 2 3 . . 1 1 . . . . . . 2 4 . Piercing Weapon 11 | . . . . . . . . . . . . . . . . . . . . . . . . . 2 4 1 1 1 . 1 1 . Special Melee Weapon 4 | . . . . . . . . . . . . . . . . . . . . . . . . . . 1 1 . 1 . 1 . . Unidentified Prototypes 26 | . . 1 1 . . . 1 . 2 . 2 . . . . . . . 1 1 2 . 1 . . . 3 1 4 . 6 . . Parts Lost 85 | . . 3 . . . 2 . 3 11 11 7 2 . 3 1 1 . . . 1 1 1 . . 6 2 13 3 2 2 2 4 4 Power 12 | . . 1 . . . . . . 2 3 2 . . . . 1 . . . . . 1 . . . . 1 . . . 1 . . Propulsion 15 | . . . . . . 1 . . 2 4 1 1 . . . . . . . 1 . . . . 1 . 2 1 . . . 1 . Utility 35 | . . . . . . . . 1 4 1 2 . . 1 1 . . . . . 1 . . . 4 1 8 1 1 1 1 3 4 Weapon 23 | . . 2 . . . 1 . 2 3 3 2 1 . 2 . . . . . . . . . . 1 1 2 1 1 1 . . . Highest Loss Streak 7 | . . 2 . . . 2 . 1 3 7 4 2 . 3 1 1 . . . 1 1 1 . . 3 2 5 1 1 2 2 4 2 Average Slot Usage (%) 90 | . 95 97 98 100 100 99 100 100 98 98 97 85 92 91 91 90 83 80 82 85 87 87 87 87 88 93 90 94 91 86 84 82 88 Engine 1 | . 14 14 11 11 11 11 5 . . . 6 1 . . . 3 6 1 . . . . . . . . . . . . . . . Core 1 | . . . . . . . 3 9 9 8 . . . . . . . . . . . 1 4 5 5 2 . . . . . . . Reactor 2 | . . . . . . . . . . . . 5 7 7 7 3 . 4 6 6 5 3 . . . 2 4 4 3 4 4 4 4 Treads 7 | . 1 2 9 11 11 10 . 8 20 20 6 . . 4 7 7 . . . 1 5 5 5 5 5 5 5 13 10 9 8 8 8 Leg 1 | . . . . . . . 9 . . 5 11 7 7 2 . . . . . . . . . . . . . . . . . . . Wheel 5 | . 26 25 12 11 11 11 18 18 6 . 1 7 7 7 7 7 11 13 13 11 5 5 5 5 6 10 7 . . . . . . Device 5 | . . 6 22 19 11 11 18 9 8 3 9 15 7 2 . . . . . . 1 . . . 7 3 5 6 6 5 6 7 7 Storage 23 | . 14 14 21 22 22 22 18 18 18 27 23 22 23 25 23 23 26 26 26 25 23 23 23 23 21 25 22 26 28 28 26 26 24 Hackware 21 | . . . . . . . . . . . 17 15 23 18 28 27 24 26 22 25 29 29 30 33 25 29 27 31 30 24 25 22 28 Protection 3 | . 9 7 . 2 11 11 9 17 14 5 . . . 5 1 1 . . . . 3 4 3 1 6 2 3 . . 2 4 4 8 Energy Gun 2 | . 13 2 18 21 22 20 11 16 4 . . . . . . . . . 5 4 . . . . . 2 . 3 2 1 . . . Energy Cannon 3 | . . 14 1 . . . . . 4 2 8 3 7 2 . . . . . . 4 5 4 4 4 2 3 1 4 4 3 . 2 Ballistic Gun 1 | . 14 9 . . . . . . 8 15 2 . . . . . . . . . . . . 2 1 2 . . . . . 1 . Ballistic Cannon 1 | . . . . . . . . . . . . . . 10 8 8 6 . . 1 . . . . . . . . . . . . . Special Weapon 2 | . . . . . . . . . . . 2 4 7 2 3 3 6 . 3 3 3 3 4 2 3 1 2 2 . 1 2 2 3 Naked Turns . | . . . . . . . . . . . . . . . . . . . . . . . . . . . . . . . . . . Heaviest Build 255 | 13 43 46 64 68 68 68 72 87 93 94 113 108 108 136 128 116 116 121 126 126 139 137 140 162 186 189 222 218 201 207 233 255 248 Greatest Support 150 | 32 32 40 26 12 12 24 24 24 64 65 54 28 28 28 28 28 56 56 56 56 70 70 70 70 75 75 124 130 135 135 150 150 150 Greatest Overweight (x) 9 | . 1 2 6 5 5 5 2 4 9 3 5 5 3 6 4 4 2 2 2 4 4 4 4 5 6 5 6 1 1 1 1 3 1 Average Overweight (x) 2 | . . 1 3 5 5 4 2 2 3 1 2 3 3 4 3 3 2 2 2 2 3 3 3 4 5 4 4 1 1 1 1 1 1 Largest Inventory Capacity 42 | 6 14 12 18 18 18 18 18 20 26 26 26 26 26 32 32 32 32 32 32 32 32 32 34 36 36 42 42 42 42 42 42 42 42 Average Capacity 32 | 5 11 12 17 18 18 18 18 18 20 26 26 25 26 27 26 26 32 32 32 31 32 32 32 35 36 41 41 42 42 42 42 42 42 Most Carried 42 | 3 12 12 18 18 18 18 16 20 23 26 26 26 25 28 29 31 32 32 32 32 32 32 33 35 36 42 42 42 42 42 42 42 42 Average Carried 31 | 1 9 11 16 17 17 17 14 17 19 25 25 25 25 26 25 26 29 31 31 30 31 31 31 33 34 40 39 40 41 40 41 40 39 Final Capacity 42 | 6 12 12 18 18 18 18 18 20 26 26 26 26 26 32 26 32 32 32 32 32 32 32 34 36 36 42 42 42 42 42 42 42 42 Final Carried 42 | 3 12 12 18 17 18 17 15 20 23 26 26 25 25 28 26 31 30 32 31 32 32 32 32 35 36 42 40 42 42 42 41 42 38 Class Distribution -------------------- 59% | Botlord-Mutant 22% | Bothacker-Mutant 9% | Mutant 7% | Hauler-Mutant Dominant Class ---------------- Mutant | -10/Materials Mutant | -10/Mines Mutant | -9/Materials Mutant | -9/Mines Mutant | -9/Exiles Mutant | -8/Mines Mutant | -8/Materials Mutant | -8/Garrison Hauler-Mutant | -8/Materials Hauler-Mutant | -8/Garrison Bothacker-Mutant | -7/Factory Bothacker-Mutant | -7/Waste Bothacker-Mutant | -7/Factory Bothacker-Mutant | -7/Garrison Bothacker-Mutant | -7/Factory Bothacker-Mutant | -7/Garrison Botlord-Mutant | -6/Factory Botlord-Mutant | -6/Waste Botlord-Mutant | -6/Factory Botlord-Mutant | -6/Garrison Botlord-Mutant | -5/Factory Botlord-Mutant | -5/Garrison Botlord-Mutant | -5/Factory Botlord-Mutant | -5/Garrison Botlord-Mutant | -4/Factory Botlord-Mutant | -4/Garrison Botlord-Mutant | -3/Research Botlord-Mutant | -3/Garrison Botlord-Mutant | -3/Research Botlord-Mutant | -3/Garrison Botlord-Mutant | -2/Research Botlord-Mutant | -2/Garrison Botlord-Mutant | -1/Access Resources | -11 -10 -10 -9 -9 -9 -8 -8 -8 -8 -8 -7 -7 -7 -7 -7 -7 -6 -6 -6 -6 -5 -5 -5 -5 -4 -4 -3 -3 -3 -3 -2 -2 -1 ----------- Run | Scr Mat Min Mat Min Exi Min Mat Gar Mat Gar Fac Was Fac Gar Fac Gar Fac Was Fac Gar Fac Gar Fac Gar Fac Gar Res Gar Res Gar Res Gar Acc Matter Collected 13817 | 226 87 224 174 44 52 28 38 294 610 372 787 286 . 478 400 561 . 602 150 445 382 356 747 525 1150 514 741 527 563 442 583 739 690 Remotely . | . . . . . . . . . . . . . . . . . . . . . . . . . . . . . . . . . . Salvage Created 16847 | . 87 282 317 34 . 14 38 622 2057 733 873 581 . 208 313 724 . 1315 61 372 374 351 353 137 860 656 1177 1066 958 548 249 454 1033 Parts 729 | . 4 12 20 6 . 5 3 29 101 34 36 . . 9 10 29 . 11 2 26 32 25 20 9 51 24 72 31 26 18 21 18 45 Haulers Intercepted 6 | . . . 2 . . . . . 4 . . . . . . . . . . . . . . . . . . . . . . . . Recyclers Shooed 9 | . . . . . . . . . 3 . 3 . . . 1 . . . . . . . . . 1 . 1 . . . . . . Parts Field Recycled . | . . . . . . . . . . . . . . . . . . . . . . . . . . . . . . . . . . Retrieved Matter . | . . . . . . . . . . . . . . . . . . . . . . . . . . . . . . . . . . Parts Self-Destructed . | . . . . . . . . . . . . . . . . . . . . . . . . . . . . . . . . . . Prevented . | . . . . . . . . . . . . . . . . . . . . . . . . . . . . . . . . . . Kills | -11 -10 -10 -9 -9 -9 -8 -8 -8 -8 -8 -7 -7 -7 -7 -7 -7 -6 -6 -6 -6 -5 -5 -5 -5 -4 -4 -3 -3 -3 -3 -2 -2 -1 ------- Run | Scr Mat Min Mat Min Exi Min Mat Gar Mat Gar Fac Was Fac Gar Fac Gar Fac Was Fac Gar Fac Gar Fac Gar Fac Gar Res Gar Res Gar Res Gar Acc Combat Hostiles Destroyed 312 | . 2 6 8 4 . 4 . 16 29 16 18 3 . 5 7 21 . 6 1 10 7 24 6 5 21 14 14 13 13 14 3 7 15 Melee 17 | . . . . . . . . . . . 1 . . . 1 2 . . 1 1 . . . . . 6 1 1 . . . 3 . Guns 96 | . 2 1 3 1 . 1 . 9 22 8 6 . . 1 . . . . . 1 . . 2 2 6 4 5 6 7 2 2 4 1 Cannons 70 | . . 5 . . . . . . 6 5 8 . . 4 2 5 . . . 2 3 1 3 1 8 1 6 1 4 4 . . 1 AOE 113 | . . . 5 3 . 3 . 4 . 3 3 3 . . 1 14 . 6 . 6 4 23 1 2 7 3 . 1 . 8 . . 13 Classes Destroyed 22 | . 1 1 3 . . . 1 1 5 . 3 1 . . . . . . . 2 1 . . . . . . . . . . . 3 Worker 9 | . . . . . . . . . 1 . . . . . . . . . . . 1 . . . 2 . 3 . . . . . 2 Builder 9 | . . . . . . . . . . . . . . . . . . . . . 1 . 1 . 2 . 2 . . . 1 . 2 Hauler 6 | . . . 2 . . . . . 4 . . . . . . . . . . . . . . . . . . . . . . . . Recycler 12 | . . . 1 . . . . . 4 . 2 . . . 1 . . . . . 1 . . . . . . . 1 . . . 2 Carrier 1 | . . . . . . . . . . . . . . . . . . . . 1 . . . . . . . . . . . . . Mechanic 1 | . . . . . . . . . 1 . . . . . . . . . . . . . . . . . . . . . . . . Operator 3 | . . . . . . . . . 1 . 2 . . . . . . . . . . . . . . . . . . . . . . Watcher 3 | . . . . . . . 1 . 2 . . . . . . . . . . . . . . . . . . . . . . . . Swarmer 84 | . . . 6 4 . 4 . 4 2 3 . . . . 2 4 . . . 4 4 20 . 2 5 3 . 1 2 7 . 1 6 Grunt 108 | . 2 5 1 . . . . 8 17 8 4 . . 1 3 14 . . . 4 . 4 1 1 1 8 3 11 2 6 . . 4 Brawler 6 | . . . . . . . . . 2 . . . . . . 2 . . . . . . . 1 . . . . . . . . 1 Duelist 4 | . . . . . . . . . 1 . . . . 1 1 1 . . . . . . . . . . . . . . . . . Protector 2 | . . . . . . . . . . . . . . . . . . . . . . . . . . . . . . . . . 2 Sentry 30 | . . 1 1 . . . . 3 5 4 2 . . 3 . . . . 1 . . . 1 1 . . 2 1 4 . . 1 . Demolisher 2 | . . . . . . . . . . . 2 . . . . . . . . . . . . . . . . . . . . . . Specialist 1 | . . . . . . . . . . . . . . . . . . . . 1 . . . . . . . . . . . . . Hunter 17 | . . . . . . . . 1 2 1 1 . . . . . . . . 1 . . 1 . 5 1 3 . . . 1 . . Programmer 43 | . . . . . . . . . . . 3 . . . 1 . . . . . 3 . 3 . 10 2 6 . 5 1 2 5 2 Behemoth 1 | . . . . . . . . . . . . . . . . . . . . . . . . . . . . . . . . . 1 Compactor 9 | . . . . . . . . . . . . 3 . . . . . 6 . . . . . . . . . . . . . . . Striker 1 | . . . . . . . . . . . . . . . . . . . . . . . . . . . . . . . . . 1 Assembled 6 | . . . . . . . . . . . 6 . . . . . . . . . . . . . . . . . . . . . . Best Kill Streak 11 | . 1 2 4 4 . 4 1 4 5 8 5 1 . 2 3 4 . 4 1 6 5 11 2 2 6 5 7 6 3 9 2 3 6 Combat Bots Only 11 | . 1 2 4 4 . 4 . 4 4 8 5 1 . 2 2 4 . 4 1 6 4 11 2 2 5 5 3 6 3 9 1 3 4 Max Kills in Single Turn 5 | . 1 1 3 3 . 1 1 2 2 2 3 1 . 1 1 4 . 1 1 4 5 4 1 2 3 2 2 1 1 5 2 1 4 Gunslinging . | . . . . . . . . . . . . . . . . . . . . . . . . . . . . . . . . . . Exploded 5 | . . . 3 3 . 1 . 2 . 2 3 1 . . 1 4 . 1 . 4 4 4 1 2 3 2 . 1 . 5 . . 3 Melee 1 | . . . . . . . . . . . 1 . . . 1 1 . . 1 1 . . . . . 1 1 1 . . . 1 . Uniques/NPCs Destroyed . | . . . . . . . . . . . . . . . . . . . . . . . . . . . . . . . . . . Combat | -11 -10 -10 -9 -9 -9 -8 -8 -8 -8 -8 -7 -7 -7 -7 -7 -7 -6 -6 -6 -6 -5 -5 -5 -5 -4 -4 -3 -3 -3 -3 -2 -2 -1 -------- Run | Scr Mat Min Mat Min Exi Min Mat Gar Mat Gar Fac Was Fac Gar Fac Gar Fac Was Fac Gar Fac Gar Fac Gar Fac Gar Res Gar Res Gar Res Gar Acc Damage Taken 24293 | . 89 414 284 70 . 326 . 811 1938 1636 1597 192 15 1003 450 381 . 17 174 453 576 276 518 188 1955 873 3016 1250 1011 1108 611 1883 1178 Core 2156 | . 10 43 51 . . 10 . 65 72 191 210 33 5 184 57 78 . . 23 59 44 31 80 41 101 72 225 128 48 81 12 144 58 Absorbed by Shields 2533 | . . . . . . . . . . . . . . . . 10 . . . . . 12 . 31 . 25 125 68 521 259 443 473 566 Reduced by Siege Mode 353 | . . . . . . . . . . . . . . . . . . . . . . . . . 16 . 124 21 127 50 6 9 . Core Remaining (%) 74 | 100 . 78 . . . 84 . . . 40 . . . . . 19 . . . 90 . . . 80 . 84 . . . 62 . 89 96 Volleys Fired 1252 | . 5 24 17 2 . 9 . 51 116 54 73 36 . 35 27 35 . 19 18 33 41 25 58 37 109 35 91 45 43 38 46 41 89 Largest 2 | . 2 2 2 2 . 2 . 2 2 2 2 2 . 2 2 2 . 2 1 2 2 2 2 2 2 2 2 2 2 2 2 2 2 Hottest 240 | . 70 120 116 86 . 112 . 111 116 93 86 60 . 106 106 106 . 106 65 118 179 116 98 68 145 121 226 169 213 213 226 207 240 Shots Fired 1837 | . 10 44 29 4 . 15 . 98 232 102 119 51 . 53 32 43 . 20 18 39 50 28 67 39 142 47 132 72 76 52 63 46 114 Gun 776 | . 10 18 22 2 . 10 . 95 183 77 40 . . 11 . . . . 2 16 2 . 21 3 28 22 52 58 40 6 22 29 7 Cannon 630 | . . 26 2 . . . . . 49 23 60 30 . 39 14 20 . 2 . 6 27 9 12 6 82 8 56 7 33 35 20 4 60 Launcher 127 | . . . 5 2 . 5 . 3 . 2 2 18 . . 1 13 . 18 . 8 1 13 4 2 6 5 . . . 7 . . 12 Special 304 | . . . . . . . . . . . 17 3 . 3 17 10 . . 16 9 20 6 30 28 26 12 24 7 3 4 21 13 35 Kinetic 466 | . 5 14 . . . . . . 104 77 37 . . 29 14 20 . 2 . 6 7 . 14 3 22 12 52 . 8 . 8 25 7 Thermal 812 | . 5 30 24 2 . 10 . 95 128 23 63 30 . 21 . . . . 2 16 15 5 19 6 88 18 41 . 44 28 31 8 60 Explosive 123 | . . . 5 2 . 5 . 3 . 2 2 18 . . 1 13 . 18 . 8 1 13 4 2 6 5 . . . 7 . . 8 Electromagnetic 132 | . . . . . . . . . . . . . . . . . . . . . 7 4 . . . . 15 65 21 13 3 . 4 Robot Hit Streak 34 | . 5 9 16 2 . 3 . 14 21 16 14 13 . 14 11 4 . 15 18 8 16 10 9 14 22 11 16 21 34 21 16 23 17 Robot Miss Streak 5 | . 1 3 2 1 . . . 5 3 2 5 3 . 2 3 1 . . 2 2 4 1 2 1 3 1 2 2 3 2 2 2 3 Penetration Max 1 | . . . . . . . . . 1 . . . . . . . . . . . . . . . 1 . 1 . . . 1 1 1 Secondary Targets 9 | . . . 1 . . . . 1 2 2 2 . . . . . . . . . . . . . . 1 . . . . . . . Max Gunslinging Chain 1 | . . . 1 . . . . 1 1 1 1 . . . . . . . . . . . . . . 1 . . . . . . . Shots Hit Robots 1297 | . 8 32 19 2 . 1 1 64 164 84 74 36 . 38 29 19 . 13 15 25 36 12 46 31 67 42 114 57 69 36 48 65 50 Core Hits 602 | . 4 10 12 4 . 6 1 27 70 31 34 9 . 13 6 27 . 14 1 21 11 31 12 5 35 28 34 25 36 29 7 12 47 Critical Hits 21 | . . 1 . . . . 1 . 5 3 . . . 1 . . . . 1 . . . 1 . 1 3 2 . 1 . . . 1 Critical Kills 9 | . . . . . . . 1 . 4 2 . . . . . . . . . . . . . . 1 1 . . . . . . . Critical Parts Destroyed 8 | . . 1 . . . . . . 1 1 . . . 1 . . . . 1 . . . . . . 2 1 . . . . . . Melee Attacks 139 | . . . . . . . 4 14 8 . 10 . . . 11 5 . . 7 4 . . . 1 4 13 7 2 5 . 15 29 . Impact 11 | . . . . . . . . . . . . . . . 11 . . . . . . . . . . . . . . . . . . Slashing 89 | . . . . . . . 4 14 8 . 10 . . . . 5 . . 7 4 . . . 1 . . . . . . 8 28 . Piercing 23 | . . . . . . . . . . . . . . . . . . . . . . . . . 4 10 1 2 1 . 4 1 . Sneak Attacks 44 | . . . . . . . . . 1 . 5 . . . 7 2 . . 5 1 . . . . . 7 1 1 4 . 3 7 . Combat Hostiles 31 | . . . . . . . . . . . 2 . . . 6 2 . . 5 1 . . . . . 6 1 1 . . . 7 . Follow-up Attacks 2 | . . . . . . . . . . . . . . . . . . . . . . . . . . 1 . . . . . 1 . Damage Inflicted 51953 | . 99 491 637 176 . 334 33 1342 3324 1748 2170 2555 . 1039 1076 2334 . 3527 480 1836 1073 2709 901 376 2988 2050 3582 1693 2326 2702 993 2875 4484 Guns 13413 | . 99 158 245 17 . 17 . 1128 2384 1057 477 . . 200 . . . . . 268 66 . 309 77 454 374 1541 1304 1260 164 568 1021 225 Cannons 12284 | . . 333 34 . . . . . 817 409 828 671 . 839 252 294 . 57 . 122 667 104 324 131 1174 102 1862 183 1057 863 425 144 592 Explosions 20981 | . . . 358 159 . 317 . 214 . 282 221 1884 . . 157 1827 . 3470 . 1256 340 2605 268 168 1213 835 . 65 . 1675 . . 3667 Melee 5246 | . . . . . . . 33 . 123 . 644 . . . 667 213 . . 480 190 . . . . 147 739 159 141 . . . 1710 . Ramming 29 | . . . . . . . . . . . . . . . . . . . . . . . . . . . 20 . 9 . . . . Kinetic 8484 | . 49 101 . . . . . . 1414 1057 452 . . 621 252 294 . 57 . 122 235 . 205 77 298 168 1541 . 190 . 252 874 225 Thermal 14202 | . 50 390 279 17 . 17 . 1128 1787 409 853 671 . 418 . . . . . 268 470 69 428 131 1361 308 1342 65 1474 769 615 291 592 Explosive 20450 | . . . 358 159 . 317 . 214 . 282 221 1884 . . 157 1827 . 3470 . 1256 340 2605 268 168 1182 835 . . . 1675 . . 3232 Electromagnetic 3542 | . . . . . . . . . . . . . . . . . . . . . 28 35 . . . . 520 1487 653 258 126 . 435 Impact 667 | . . . . . . . . . . . . . . . 667 . . . . . . . . . . . . . . . . . . Slashing 3334 | . . . . . . . 33 . 123 . 644 . . . . 213 . . 480 190 . . . . . . . . . . . 1651 . Piercing 1245 | . . . . . . . . . . . . . . . . . . . . . . . . . 147 739 159 141 . . . 59 . Highest Corruption 20 | . . . . . . . . . . . 12 8 . . . . . . . 3 2 . 1 . 5 3 7 5 10 8 3 20 1 Average Corruption 4 | . . . . . . . . . . . 2 4 . . . . . . . 2 1 . 1 . 2 1 3 2 6 2 1 14 1 Corruption Purged 63 | . . . . . . . . . . . 4 8 . . . . . . . . 2 . 1 . 6 4 4 5 3 9 3 12 2 Effects 266 | . . . . . . . . . . . 43 34 . . . . . . . 15 3 . 4 . 20 2 12 3 25 12 10 82 1 Message Errors 67 | . . . . . . . . . . . 9 13 . . . . . . . 6 . . 3 . 1 1 3 1 10 3 4 12 1 Matter Fused 49 | . . . . . . . . . . . 5 5 . . . . . . . 4 . . . . 5 . 2 . 5 1 3 19 . Heat Flow Errors 27 | . . . . . . . . . . . 5 5 . . . . . . . 1 1 . . . 3 . . . 3 1 . 8 . Energy Discharges 33 | . . . . . . . . . . . 7 3 . . . . . . . . . . . . 4 1 1 . 1 2 1 13 . Parts Rejected 5 | . . . . . . . . . . . . 1 . . . . . . . . . . . . 2 . . 1 . . . 1 . Data Loss (minor) 34 | . . . . . . . . . . . 8 3 . . . . . . . 3 1 . 1 . 2 . . . 2 3 1 10 . Data Loss (major) 5 | . . . . . . . . . . . 1 . . . . . . . . . . . . . . . . . . 1 . 3 . Misfires 2 | . . . . . . . . . . . . . . . . . . . . . . . . . . . . . 1 . . 1 . Alerts 1 | . . . . . . . . . . . . . . . . . . . . . . . . . . . . . . . . 1 . Misdirections 12 | . . . . . . . . . . . 3 . . . . . . . . . . . . . . . . . . . . 9 . Targeting Errors 27 | . . . . . . . . . . . 3 4 . . . . . . . 1 1 . . . 3 . 4 1 3 1 1 5 . Weapon Failures 4 | . . . . . . . . . . . 2 . . . . . . . . . . . . . . . 2 . . . . . . Overload Shots . | . . . . . . . . . . . . . . . . . . . . . . . . . . . . . . . . . . Overflow Damage 2449 | . . 10 39 . . 33 . 5 10 . 286 15 . . 377 76 . 98 49 74 67 317 2 . 135 . 167 23 15 139 41 143 328 Projectiles 483 | . . 10 . . . . . . 10 . 19 . . . 15 . . . . . 67 . . . 34 . 167 23 15 50 41 26 6 Explosions 1135 | . . . 39 . . 33 . 5 . . 3 15 . . . 76 . 98 . 35 . 317 2 . 101 . . . . 89 . . 322 Melee 831 | . . . . . . . . . . . 264 . . . 362 . . . 49 39 . . . . . . . . . . . 117 . Knockbacks 11 | . . . . . . . . . . . . . . 4 6 1 . . . . . . . . . . . . . . . . . Impact 3 | . . . . . . . . . . . . . . . 3 . . . . . . . . . . . . . . . . . . Kinetic 8 | . . . . . . . . . . . . . . 4 3 1 . . . . . . . . . . . . . . . . . Secondary . | . . . . . . . . . . . . . . . . . . . . . . . . . . . . . . . . . . Self-Inflicted Damage 410 | . . . 25 22 . 59 . . . 65 . 164 . . . 8 . 20 . . . . . . 21 4 . . . . . . 22 Shots 22 | . . . 1 1 . 2 . . . 2 . 7 . . . 1 . 2 . . . . . . 1 1 . . . . . . 4 Rammed 2 | . . . . . . . . . . . . . . . . . . . . . . . . . . . 1 . 1 . . . . Targets Rammed 2 | . . . . . . . . . . . . . . . . . . . . . . . . . . . 1 . 1 . . . . Kicked . | . . . . . . . . . . . . . . . . . . . . . . . . . . . . . . . . . . Crushed . | . . . . . . . . . . . . . . . . . . . . . . . . . . . . . . . . . . Highest Temperature 410 | . 60 221 260 . . 45 . 176 264 86 239 228 . 300 120 60 . 15 16 250 396 126 132 36 204 102 172 162 287 363 356 410 314 Average Temperature 77 | . 28 87 76 . . 20 . 55 98 25 80 96 . 103 26 15 . 10 4 58 121 42 37 16 30 37 33 50 88 134 75 123 89 Received Heat Transfer 4319 | . 36 231 24 . . . . 324 675 729 140 . . 357 93 90 . . 48 108 78 42 54 17 129 183 249 270 39 292 28 66 17 Effects 17 | . . 1 . . . . . . . . . 1 . . . . . . . . 1 . . . . . . . . 5 3 6 . Shutdowns 1 | . . . . . . . . . . . . . . . . . . . . . . . . . . . . . . . . 1 . Energy Bleed 7 | . . 1 . . . . . . . . . 1 . . . . . . . . 1 . . . . . . . . 1 2 1 . Interference 6 | . . . . . . . . . . . . . . . . . . . . . . . . . . . . . . 4 1 1 . Short Circuit 2 | . . . . . . . . . . . . . . . . . . . . . . . . . . . . . . . . 2 . Damage (minor) 1 | . . . . . . . . . . . . . . . . . . . . . . . . . . . . . . . . 1 . Siege Activations 19 | . . . . . . . . . . . . . . . . . . . . . . . . . 4 . 3 1 4 2 2 2 1 Total Turns 504 | . . . . . . . . . . . . . . . . . . . . . . . . . 46 . 122 77 100 62 20 69 8 Longest Duration 77 | . . . . . . . . . . . . . . . . . . . . . . . . . 24 . 56 77 33 42 15 47 8 Robots Corrupted 10 | . . . . . . . . . . . . . . . . . . . . . . . . . . . 2 4 2 . 1 . 1 Combat Hostiles 9 | . . . . . . . . . . . . . . . . . . . . . . . . . . . 2 4 2 . 1 . . Parts Fried 26 | . . . . . . . . . . . . . . . 1 . . . . . . . . . . . 4 14 4 2 . . 1 Impact Corruptions 12 | . . . . . . . . . . . . . . . 12 . . . . . . . . . . . . . . . . . . Robots Melted 4 | . . . . . . . . 3 1 . . . . . . . . . . . . . . . . . . . . . . . . Combat Hostiles 4 | . . . . . . . . 3 1 . . . . . . . . . . . . . . . . . . . . . . . . Parts Melted 43 | . . . 1 . . . . 8 5 1 3 . . . . . . . . . . . . . 5 . . . 10 5 2 2 1 Heat Transferred 19167 | . 148 851 629 37 . 37 . 2309 3478 681 1110 925 . 324 . . . . . 235 444 100 473 175 1635 409 1110 . 1958 805 592 259 443 Parts Sabotaged . | . . . . . . . . . . . . . . . . . . . . . . . . . . . . . . . . . . Parts Stolen . | . . . . . . . . . . . . . . . . . . . . . . . . . . . . . . . . . . Parts Stripped . | . . . . . . . . . . . . . . . . . . . . . . . . . . . . . . . . . . Power Chain Reactions 1 | . . . . . . . . . . . . . . . . . . . . . . . . . . . . 1 . . . . . Missiles Intercepted 1 | . . . . . . . . . . . . . . . . . . . . . . . . . . . . . . . . . 1 Alert | -11 -10 -10 -9 -9 -9 -8 -8 -8 -8 -8 -7 -7 -7 -7 -7 -7 -6 -6 -6 -6 -5 -5 -5 -5 -4 -4 -3 -3 -3 -3 -2 -2 -1 ------- Run | Scr Mat Min Mat Min Exi Min Mat Gar Mat Gar Fac Was Fac Gar Fac Gar Fac Was Fac Gar Fac Gar Fac Gar Fac Gar Res Gar Res Gar Res Gar Acc Peak Influence 2670 | . 83 89 327 90 . 109 64 840 785 1019 650 164 . 792 475 995 522 250 358 684 513 1284 840 971 702 844 501 729 449 857 519 831 2670 Initial 674 | . . . 24 49 . . 34 41 409 510 534 129 . . 405 148 522 182 175 112 359 259 674 103 509 321 474 306 409 81 481 216 498 Average 471 | . 27 28 236 55 . 61 50 488 544 813 438 36 . 519 304 572 522 228 248 511 411 977 355 707 328 592 385 563 174 549 212 623 1319 Maximum Alert Level 5 | . . . 1 . . . . 3 3 3 2 . . 3 2 3 2 1 1 2 2 4 3 3 3 3 2 3 2 3 2 3 5 Low Security (%) 21 | 100 100 100 36 100 . 100 100 18 . . . 100 100 8 2 7 . 29 48 6 . . 23 10 22 . . . 68 24 37 . . Level 1 25 | . . . 63 . . . . 16 7 . 45 . . 12 75 21 . 70 51 26 49 17 47 15 34 19 62 26 12 . 54 16 . Level 2 29 | . . . . . . . . 32 75 28 54 . . 59 22 32 100 . . 67 50 5 10 7 41 47 37 45 19 43 8 27 5 Level 3 17 | . . . . . . . . 32 16 71 . . . 19 . 38 . . . . . 30 18 66 1 32 . 27 . 31 . 56 23 Level 4 4 | . . . . . . . . . . . . . . . . . . . . . . 46 . . . . . . . . . . 51 Level 5 . | . . . . . . . . . . . . . . . . . . . . . . . . . . . . . . . . . 2 High Security . | . . . . . . . . . . . . . . . . . . . . . . . . . . . . . . . . . 16 Max Security . | . . . . . . . . . . . . . . . . . . . . . . . . . . . . . . . . . . Squads Dispatched 75 | . . . 2 . . . . . 6 . 12 . . . 8 . . . . . 2 . 6 . 9 . 3 . 5 . 4 . 18 Investigation 11 | . . . 1 . . . . . . . 3 . . . 2 . . . . . . . 2 . . . . . 1 . . . 2 Extermination 26 | . . . . . . . . . . . 5 . . . 3 . . . . . 2 . 2 . 5 . 2 . 2 . 2 . 3 Reinforcement 21 | . . . 1 . . . . . 1 . 4 . . . 3 . . . . . . . 1 . 4 . . . 2 . 2 . 3 Assault 14 | . . . . . . . . . 2 . . . . . . . . . . . . . 1 . . . 1 . . . . . 10 Garrison 3 | . . . . . . . . . 3 . . . . . . . . . . . . . . . . . . . . . . . . Intercept . | . . . . . . . . . . . . . . . . . . . . . . . . . . . . . . . . . . Construction Impeded 6 | . . . . . . . . . . . . . . . . . . . . . . . 1 . 1 . . . . . 1 . 3 Haulers Reinforced 1 | . . . . . . . . . . . . . . . . . . . . . . . . . . . . . 1 . . . . Stealth | -11 -10 -10 -9 -9 -9 -8 -8 -8 -8 -8 -7 -7 -7 -7 -7 -7 -6 -6 -6 -6 -5 -5 -5 -5 -4 -4 -3 -3 -3 -3 -2 -2 -1 --------- Run | Scr Mat Min Mat Min Exi Min Mat Gar Mat Gar Fac Was Fac Gar Fac Gar Fac Was Fac Gar Fac Gar Fac Gar Fac Gar Res Gar Res Gar Res Gar Acc Distress Signals 25 | . 1 . 1 . . . . . 2 . 5 . . . 1 . . . 1 . . . 3 2 1 . 2 . 2 . 2 . 2 Communications Jammed . | . . . . . . . . . . . . . . . . . . . . . . . . . . . . . . . . . . Distress Signals . | . . . . . . . . . . . . . . . . . . . . . . . . . . . . . . . . . . Times Spotted 737 | . 9 8 15 4 . 5 1 21 54 27 51 6 . 16 30 23 . 6 6 19 20 18 40 29 42 22 41 25 23 30 33 32 81 Peak Tracking Total 14 | . 5 2 8 4 . 4 1 4 6 8 7 3 . 3 5 4 . 4 1 4 6 6 6 5 6 5 7 8 3 7 4 7 14 Tactical Retreats 63 | . 1 . 1 . . . . 10 4 8 5 . . . 1 4 . . . 3 . 2 2 2 4 . 1 2 1 9 . . 3 Traps | -11 -10 -10 -9 -9 -9 -8 -8 -8 -8 -8 -7 -7 -7 -7 -7 -7 -6 -6 -6 -6 -5 -5 -5 -5 -4 -4 -3 -3 -3 -3 -2 -2 -1 ------- Run | Scr Mat Min Mat Min Exi Min Mat Gar Mat Gar Fac Was Fac Gar Fac Gar Fac Was Fac Gar Fac Gar Fac Gar Fac Gar Res Gar Res Gar Res Gar Acc Traps Triggered 79 | . . . . . . . . 8 . 2 3 . . 4 . 10 1 . . 5 1 7 2 6 . 3 . 11 3 3 . 9 1 Indirectly . | . . . . . . . . . . . . . . . . . . . . . . . . . . . . . . . . . . Trap Hack Attempts . | . . . . . . . . . . . . . . . . . . . . . . . . . . . . . . . . . . Triggered . | . . . . . . . . . . . . . . . . . . . . . . . . . . . . . . . . . . Disarmed . | . . . . . . . . . . . . . . . . . . . . . . . . . . . . . . . . . . Reprogrammed 17 | . . . . . . . . . . . . . . . . . . . . . . . . . 11 . . . 6 . . . . Reused 1 | . . . . . . . . . . . . . . . . . . . . . . . . . 1 . . . . . . . . Traps Extracted . | . . . . . . . . . . . . . . . . . . . . . . . . . . . . . . . . . . Installed . | . . . . . . . . . . . . . . . . . . . . . . . . . . . . . . . . . . Triggered 1 | . . . . . . . . . . . . . . . . . . . . . . . . . 1 . . . . . . . . Machines | -11 -10 -10 -9 -9 -9 -8 -8 -8 -8 -8 -7 -7 -7 -7 -7 -7 -6 -6 -6 -6 -5 -5 -5 -5 -4 -4 -3 -3 -3 -3 -2 -2 -1 ---------- Run | Scr Mat Min Mat Min Exi Min Mat Gar Mat Gar Fac Was Fac Gar Fac Gar Fac Was Fac Gar Fac Gar Fac Gar Fac Gar Res Gar Res Gar Res Gar Acc Machines Disabled 61 | . . 1 . . . . . 3 3 1 . . . 2 . 6 . . . 6 1 5 . 3 8 4 . 2 1 3 2 3 7 Max in Single Turn 3 | . . 1 . . . . . 1 1 1 . . . 1 . 1 . . . 1 1 1 . 1 3 1 . 1 . 1 1 1 2 Garrison Relay 31 | . . . . . . . . 3 . 1 . . . 2 . 4 . . . 3 . 4 . 2 . 4 . 2 . 3 . 3 . Energy Cycler 2 | . . . . . . . . . . . . . . . . . . . . . . . . . . . . . . . . . 2 Machines Sabotaged . | . . . . . . . . . . . . . . . . . . . . . . . . . . . . . . . . . . Garrisons Compromised 1 | . . . . . . . . . . . 1 . . . . . . . . . . . . . . . . . . . . . . Overloaded Fab Kills . | . . . . . . . . . . . . . . . . . . . . . . . . . . . . . . . . . . Fab Network Shutdowns 1 | . . . . . . . . . . . 1 . . . . . . . . . . . . . . . . . . . . . . Hacking | -11 -10 -10 -9 -9 -9 -8 -8 -8 -8 -8 -7 -7 -7 -7 -7 -7 -6 -6 -6 -6 -5 -5 -5 -5 -4 -4 -3 -3 -3 -3 -2 -2 -1 --------- Run | Scr Mat Min Mat Min Exi Min Mat Gar Mat Gar Fac Was Fac Gar Fac Gar Fac Was Fac Gar Fac Gar Fac Gar Fac Gar Res Gar Res Gar Res Gar Acc Machines Accessed 74 | . 4 1 1 1 1 . 2 . 8 . 10 . 1 . 9 . . . 3 . 5 . 5 . 8 . 1 . 4 . 3 . 7 Terminals 40 | . 3 . 1 1 . . 1 . 4 . 6 . . . 4 . . . 1 . 3 . 3 . 2 . . . 2 . 2 . 7 Fabricators 6 | . . . . . . . . . . . 2 . . . 2 . . . . . 1 . . . 1 . . . . . . . . Repair Stations 8 | . . . . . . . . . . . 2 . . . 1 . . . 1 . . . 1 . 2 . . . 1 . . . . Recycling Units 5 | . 1 . . . . . . . 2 . . . . . 1 . . . . . . . . . 1 . . . . . . . . Scanalyzers 2 | . . . . . . . . . 1 . . . . . . . . . . . . . . . 1 . . . . . . . . Garrison Access 11 | . . . . . . . 1 . 1 . . . 1 . 1 . . . 1 . 1 . 1 . 1 . 1 . 1 . 1 . . Total Hacks 188 | . 10 1 2 4 1 . 3 . 24 . 33 . 2 . 21 . . . 4 . 9 . 14 . 25 . 1 . 12 . 6 . 16 Successful 111 | . 6 1 1 1 1 . 2 . 17 . 18 . 2 . 11 . . . 2 . 4 . 8 . 18 . 1 . 8 . 5 . 5 Failed 77 | . 4 . 1 3 . . 1 . 7 . 15 . . . 10 . . . 2 . 5 . 6 . 7 . . . 4 . 1 . 11 Catastrophic 13 | . . . . . . . . . 2 . 1 . . . 3 . . . 1 . 1 . 2 . 1 . . . . . . . 2 Database Lockouts . | . . . . . . . . . . . . . . . . . . . . . . . . . . . . . . . . . . Manual 58 | . 3 . 1 1 1 . 2 . 14 . 5 . . . 5 . . . 1 . 4 . 4 . 7 . . . 3 . 1 . 6 Terminals 118 | . 9 . 2 4 . . 2 . 14 . 23 . . . 10 . . . 1 . 5 . 9 . 12 . . . 7 . 4 . 16 Fabricators 14 | . . . . . . . . . . . 5 . . . 5 . . . . . 3 . . . 1 . . . . . . . . Repair Stations 20 | . . . . . . . . . . . 5 . . . 2 . . . 1 . . . 4 . 5 . . . 3 . . . . Recycling Units 8 | . 1 . . . . . . . 4 . . . . . 2 . . . . . . . . . 1 . . . . . . . . Scanalyzers 8 | . . . . . . . . . 4 . . . . . . . . . . . . . . . 4 . . . . . . . . Garrison Access 18 | . . . . . . . 1 . 2 . . . 2 . 2 . . . 2 . 1 . 1 . 2 . 1 . 2 . 2 . . Terminal Hacks 35 | . 2 1 1 1 1 . . . 5 . 8 . . . 1 . . . . . . . 2 . 4 . . . 3 . 2 . 4 Record 2 | . . . . . . . . . . . . . . . . . . . . . . . . . . . . . 1 . 1 . . Robot Schematic 2 | . . . . . . . . . . . 2 . . . . . . . . . . . . . . . . . . . . . . Robot Analysis 1 | . . . . . . . . . 1 . . . . . . . . . . . . . . . . . . . . . . . . Prototype ID Bank 3 | . 1 . 1 . . . . . . . . . . . . . . . . . . . . . . . . . . . 1 . . Open Door 3 | . . 1 . . . . . . . . . . . . . . . . . . . . 1 . . . . . . . . . 1 Level Access Points 1 | . . . . . . . . . . . . . . . . . . . . . . . . . . . . . . . . . 1 Branch Access Points 1 | . . . . . . . . . . . 1 . . . . . . . . . . . . . . . . . . . . . . Emergency Access Points 2 | . . . . . . . . . . . 1 . . . . . . . . . . . . . 1 . . . . . . . . Terminal Index 1 | . . . . . . . . . . . . . . . . . . . . . . . . . . . . . . . . . 1 Garrison Index 1 | . . . . . . . . . 1 . . . . . . . . . . . . . . . . . . . . . . . . Unreport Threat 5 | . 1 . . . . . . . 1 . 2 . . . . . . . . . . . . . . . . . . . . . 1 Locate Traps 7 | . . . . . . . . . 2 . 2 . . . . . . . . . . . 1 . 1 . . . 1 . . . . Reprogram Traps 3 | . . . . . . . . . . . . . . . . . . . . . . . . . 2 . . . 1 . . . . Zone Layout 2 | . . . . 1 . . . . . . . . . . 1 . . . . . . . . . . . . . . . . . . EX-Prototype ID Bank 1 | . . . . . 1 . . . . . . . . . . . . . . . . . . . . . . . . . . . . Fabricator Hacks 10 | . . . . . . . . . . . 3 . . . 4 . . . . . 2 . . . 1 . . . . . . . . Network Status 1 | . . . . . . . . . . . . . . . . . . . . . . . . . 1 . . . . . . . . Load Schematic 3 | . . . . . . . . . . . 1 . . . 1 . . . . . 1 . . . . . . . . . . . . Build 6 | . . . . . . . . . . . 2 . . . 3 . . . . . 1 . . . . . . . . . . . . Repair Station Hacks 15 | . . . . . . . . . . . 4 . . . 2 . . . . . . . 3 . 4 . . . 2 . . . . Scan Component 8 | . . . . . . . . . . . 2 . . . 1 . . . . . . . 2 . 2 . . . 1 . . . . Repair 7 | . . . . . . . . . . . 2 . . . 1 . . . . . . . 1 . 2 . . . 1 . . . . Recycling Unit Hacks 3 | . 1 . . . . . . . 2 . . . . . . . . . . . . . . . . . . . . . . . . Report Inventory 3 | . 1 . . . . . . . 2 . . . . . . . . . . . . . . . . . . . . . . . . Scanalyzer 7 | . . . . . . . . . 3 . . . . . . . . . . . . . . . 4 . . . . . . . . Insert Component 4 | . . . . . . . . . 2 . . . . . . . . . . . . . . . 2 . . . . . . . . Analyze 3 | . . . . . . . . . 1 . . . . . . . . . . . . . . . 2 . . . . . . . . Garrison Access Hacks 18 | . . . . . . . 1 . 2 . . . 2 . 2 . . . 2 . 1 . 1 . 2 . 1 . 2 . 2 . . Unlock Access 11 | . . . . . . . 1 . 1 . . . 1 . 1 . . . 1 . 1 . 1 . 1 . 1 . 1 . 1 . . Coupler Status 7 | . . . . . . . . . 1 . . . 1 . 1 . . . 1 . . . . . 1 . . . 1 . 1 . . Unauthorized Hacks 23 | . 3 . . . . . 1 . 5 . 3 . . . 2 . . . . . 1 . 2 . 3 . . . 1 . 1 . 1 Terminals 20 | . 3 . . . . . 1 . 3 . 3 . . . 2 . . . . . 1 . 2 . 2 . . . 1 . 1 . 1 Track 1 | . 1 . . . . . . . . . . . . . . . . . . . . . . . . . . . . . . . . Assimilate 1 | . . . . . . . . . . . . . . . . . . . . . . . 1 . . . . . . . . . . Botnet 18 | . 2 . . . . . 1 . 3 . 3 . . . 2 . . . . . 1 . 1 . 2 . . . 1 . 1 . 1 Fabricators . | . . . . . . . . . . . . . . . . . . . . . . . . . . . . . . . . . . Repair Stations . | . . . . . . . . . . . . . . . . . . . . . . . . . . . . . . . . . . Recycling Units 3 | . . . . . . . . . 2 . . . . . . . . . . . . . . . 1 . . . . . . . . Reject 3 | . . . . . . . . . 2 . . . . . . . . . . . . . . . 1 . . . . . . . . Scanalyzers . | . . . . . . . . . . . . . . . . . . . . . . . . . . . . . . . . . . Garrison Access . | . . . . . . . . . . . . . . . . . . . . . . . . . . . . . . . . . . Data Cores Recovered . | . . . . . . . . . . . . . . . . . . . . . . . . . . . . . . . . . . Used . | . . . . . . . . . . . . . . . . . . . . . . . . . . . . . . . . . . Hacking Detections 61 | . 3 . 1 1 . . 2 . 7 . 9 . . . 8 . . . 2 . 4 . 4 . 5 . 1 . 4 . 3 . 7 Full Trace Events 6 | . . . . . . . . . . . 1 . . . 2 . . . . . . . 2 . . . . . . . . . 1 Feedback Events . | . . . . . . . . . . . . . . . . . . . . . . . . . . . . . . . . . . Feedback Blocked . | . . . . . . . . . . . . . . . . . . . . . . . . . . . . . . . . . . Robot Schematics Acquired 2 | . . . . . . . . . . . 2 . . . . . . . . . . . . . . . . . . . . . . Robots Built 14 | . . . . . . . . . . . 4 . . . 8 . . . . . 2 . . . . . . . . . . . . Matter 1116 | . . . . . . . . . . . 372 . . . 558 . . . . . 186 . . . . . . . . . . . . Time 594 | . . . . . . . . . . . 198 . . . 297 . . . . . 99 . . . . . . . . . . . . Total Robot Build Rating 28 | . . . . . . . . . . . 8 . . . 16 . . . . . 4 . . . . . . . . . . . . Part Schematics Acquired 3 | . . . . . . . . . 1 . . . . . . . . . . . . . . . 2 . . . . . . . . Parts Built . | . . . . . . . . . . . . . . . . . . . . . . . . . . . . . . . . . . Matter . | . . . . . . . . . . . . . . . . . . . . . . . . . . . . . . . . . . Time . | . . . . . . . . . . . . . . . . . . . . . . . . . . . . . . . . . . Total Part Build Rating . | . . . . . . . . . . . . . . . . . . . . . . . . . . . . . . . . . . Parts Repaired 7 | . . . . . . . . . . . 2 . . . 1 . . . . . . . 1 . 2 . . . 1 . . . . Time 396 | . . . . . . . . . . . 52 . . . 28 . . . . . . . 100 . 160 . . . 56 . . . . Parts Recycled . | . . . . . . . . . . . . . . . . . . . . . . . . . . . . . . . . . . Recycled Matter . | . . . . . . . . . . . . . . . . . . . . . . . . . . . . . . . . . . Retrieved Matter . | . . . . . . . . . . . . . . . . . . . . . . . . . . . . . . . . . . Retrieved Components . | . . . . . . . . . . . . . . . . . . . . . . . . . . . . . . . . . . Parts Scanalyzed 3 | . . . . . . . . . 1 . . . . . . . . . . . . . . . 2 . . . . . . . . Part Schematics Acquired 3 | . . . . . . . . . 1 . . . . . . . . . . . . . . . 2 . . . . . . . . Parts Damaged 2 | . . . . . . . . . . . . . . . . . . . . . . . . . 2 . . . . . . . . Bothacking | -11 -10 -10 -9 -9 -9 -8 -8 -8 -8 -8 -7 -7 -7 -7 -7 -7 -6 -6 -6 -6 -5 -5 -5 -5 -4 -4 -3 -3 -3 -3 -2 -2 -1 ------------ Run | Scr Mat Min Mat Min Exi Min Mat Gar Mat Gar Fac Was Fac Gar Fac Gar Fac Was Fac Gar Fac Gar Fac Gar Fac Gar Res Gar Res Gar Res Gar Acc Used RIF Installer 11 | . . . . . . . . 1 . 1 . . . 1 . 1 . . . 1 . 1 . 1 . 1 . 1 . 1 . 1 . Hotswap 1 | . . . . . . . . . . . . . . . . . . . . . . . . . . . . . . . . 1 . Zone Cloak 2 | . . . . . . . . . . . . . . . . . . . . . . 1 . . . 1 . . . . . . . Patrol Navigation 1 | . . . . . . . . . . . . . . 1 . . . . . . . . . . . . . . . . . . . Watcher Feeds 1 | . . . . . . . . . . . . . . . . 1 . . . . . . . . . . . . . . . . . Structural Interface 1 | . . . . . . . . . . . . . . . . . . . . . . . . 1 . . . . . . . . . Program Shield 1 | . . . . . . . . . . 1 . . . . . . . . . . . . . . . . . . . . . . . Autooverride 1 | . . . . . . . . . . . . . . . . . . . . 1 . . . . . . . . . . . . . Autoassimilate 1 | . . . . . . . . . . . . . . . . . . . . . . . . . . . . 1 . . . . . Crosswire 1 | . . . . . . . . . . . . . . . . . . . . . . . . . . . . . . 1 . . . Robots Hacked 248 | . . . . . . . . . . . 13 . . 3 13 7 . . 7 7 12 6 23 17 11 13 16 11 6 11 19 16 37 Non-combat 52 | . . . . . . . . . . . 7 . . . 5 1 . . 3 . 4 . 3 1 3 . 4 . 2 . 8 1 10 Combat 196 | . . . . . . . . . . . 6 . . 3 8 6 . . 4 7 8 6 20 16 8 13 12 11 4 11 11 15 27 Autooverrided 31 | . . . . . . . . . . . . . . . . . . . . 1 . . 8 3 . 3 . 2 . 4 1 4 5 Autoassimilated 26 | . . . . . . . . . . . . . . . . . . . . . . . . . . . . 4 2 3 4 3 10 Robot Hacks Applied 241 | . . . . . . . . . . . 15 . . 3 14 7 . . 10 7 18 6 22 16 18 12 21 6 5 4 20 10 27 parse_system 12 | . . . . . . . . . . . 1 . . . . . . . . 1 1 . . 2 3 1 1 1 . . . . 1 no_distress 4 | . . . . . . . . . . . . . . . . . . . 1 . 1 . . . 1 . . . 1 . . . . find_chute 1 | . . . . . . . . . . . 1 . . . . . . . . . . . . . . . . . . . . . . ignore_repairs 8 | . . . . . . . . . . . . . . . 1 . . . . . 1 . 1 . . . . . . . 3 . 2 randomize_corridors 1 | . . . . . . . . . . . . . . . . . . . . . . . . . . . . . . . . . 1 map_earth 1 | . . . . . . . . . . . . . . . . . . . . . . . . . . . . . . . . . 1 find_fabricator 1 | . . . . . . . . . . . . . . . . . . . . . . . . . 1 . . . . . . . . drop_inventory 8 | . . . . . . . . . . . . . . . . . . . . . . . . . 1 . 2 . . . 3 . 2 locate_stockpiles 5 | . . . . . . . . . . . . . . . . . . . . . . . 1 . 1 . 1 . . . 1 . 1 find_recycling 5 | . . . . . . . . . . . . . . . . . . . 1 . 2 . . . . . 1 . . . . . 1 ignore_parts 7 | . . . . . . . . . . . . . . . 1 . . . 1 . 2 . . . . . 1 . . . . . 2 find_station 1 | . . . . . . . . . . . . . . . . . . . . . 1 . . . . . . . . . . . . purge_threat 10 | . . . . . . . . . . . . . . . . . . . . . . . 3 . 3 . . . 1 . 3 . . map_route 3 | . . . . . . . . . . . 1 . . . 1 . . . . . . . . . . . . . . . . . 1 mark_security 4 | . . . . . . . . . . . 1 . . . . 1 . . 1 . . . . . . . . . . . . . 1 find_garrison 6 | . . . . . . . . . . . . . . . . . . . 1 . . . 1 . 1 . 1 . 1 . 1 . . link_fov 1 | . . . . . . . . . . . . . . . . . . . . . . . . . . . . . . . . . 1 reboot_propulsion 1 | . . . . . . . . . . . . . . . . . . . . . . . . 1 . . . . . . . . . disrupt_area 1 | . . . . . . . . . . . . . . . . . . . . . . . . . . . . . . . . . 1 overload_power 10 | . . . . . . . . . . . 1 . . . 1 . . . . . 1 . 2 3 . 1 1 . . . . . . amplify_resonance 2 | . . . . . . . . . . . . . . . . . . . . . 1 . 1 . . . . . . . . . . wipe_record 2 | . . . . . . . . . . . . . . . . . . . . . . . 1 . . . 1 . . . . . . disable_weapons 1 | . . . . . . . . . . . . . . . . . . . . . . . . . . . 1 . . . . . . reboot_system 19 | . . . . . . . . . . . 1 . . 1 1 2 . . 3 2 2 1 1 1 . 1 . . . . . 1 2 go_dormant 3 | . . . . . . . . . . . . . . 1 1 . . . . . . . 1 . . . . . . . . . . overwrite_iff 42 | . . . . . . . . . . . 2 . . . 4 2 . . . . . 2 3 5 3 7 4 1 . 2 2 1 4 formatsys_low 13 | . . . . . . . . . . . 4 . . . 2 . . . 1 . 1 . 2 . . . . . 1 . 2 . . formatsys_high 69 | . . . . . . . . . . . 3 . . 1 2 2 . . 1 4 5 3 5 4 4 2 7 4 1 2 5 8 6 Relay Couplers Released 125 | . . . . . . . . 12 . 4 6 . . 6 . 15 . . . 13 . 15 . 8 . 14 . 7 . 12 . 13 . Machine Destruction 122 | . . . . . . . . 12 . 4 3 . . 6 . 15 . . . 13 . 15 . 8 . 14 . 7 . 12 . 13 . Programmers 3 | . . . . . . . . . . . 3 . . . . . . . . . . . . . . . . . . . . . . Attached 80 | . . . . . . . . . . . 7 1 . 2 3 6 1 . 1 3 5 3 5 5 6 4 6 3 . 4 6 5 4 Crosswired 13 | . . . . . . . . . . . . . . . . . . . . . . . . . . . . . . 8 . 5 . Robots Rewired 7 | . . . . . . . . . . . . . . . . . . . . . . . . 7 . . . . . . . . . Allies Hacked 1 | . . . . . . . . . . . . . . . . . . . . . . . . . . . 1 . . . . . . Hacks Repelled . | . . . . . . . . . . . . . . . . . . . . . . . . . . . . . . . . . . Allies | -11 -10 -10 -9 -9 -9 -8 -8 -8 -8 -8 -7 -7 -7 -7 -7 -7 -6 -6 -6 -6 -5 -5 -5 -5 -4 -4 -3 -3 -3 -3 -2 -2 -1 -------- Run | Scr Mat Min Mat Min Exi Min Mat Gar Mat Gar Fac Was Fac Gar Fac Gar Fac Was Fac Gar Fac Gar Fac Gar Fac Gar Res Gar Res Gar Res Gar Acc Total Allies 226 | . . 3 . . . . . . . . 13 22 . 1 16 4 . 1 2 5 8 5 17 19 7 11 11 11 4 11 13 17 25 Largest Group 20 | . . 3 1 . . . . . . . 5 20 20 13 6 7 2 2 4 3 6 4 4 9 10 4 3 5 3 5 9 10 12 Highest-Rated Group 1038 | . . 40 14 . . . . . . . 70 616 616 462 90 72 53 53 108 111 210 149 153 403 439 192 192 245 176 254 446 682 1038 Highest-Rated Ally 222 | . . 16 14 . . . . . . . 32 129 129 129 32 32 32 32 32 41 49 49 49 60 58 49 64 64 64 64 69 147 222 Total Orders 134 | . . 1 4 . . . 3 . . . 6 . . 3 4 2 . . 3 4 9 3 9 9 18 2 8 2 14 2 8 8 12 STAY 51 | . . . . . . . . . . . . . . 2 2 1 . . 1 3 2 2 4 6 3 2 2 1 3 1 4 5 7 ROAM 3 | . . . . . . . . . . . 1 . . 1 . . . . . . . . . 1 . . . . . . . . . FOLLOW 32 | . . . . . . . . . . . . . . . 2 1 . . . 1 2 1 4 2 2 . 1 1 2 1 4 3 5 AID 5 | . . . . . . . . . . . . . . . . . . . . . 5 . . . . . . . . . . . . DROP 4 | . . . . . . . . . . . 2 . . . . . . . 1 . . . 1 . . . . . . . . . . PICKUP 1 | . . . . . . . . . . . . . . . . . . . 1 . . . . . . . . . . . . . . EXPLORE 31 | . . . 3 . . . 2 . . . 3 . . . . . . . . . . . . . 10 . 4 . 9 . . . . RETURN 7 | . . 1 1 . . . 1 . . . . . . . . . . . . . . . . . 3 . 1 . . . . . . Ally Attacks 1207 | . . 19 23 . . . . . . . 53 3 . 84 38 36 . 50 12 23 35 19 98 79 65 49 37 32 45 34 82 72 219 Total Damage 44847 | . . 178 84 . . . . . . . 897 189 . 2458 507 754 . 2084 277 752 867 381 2502 3714 1696 1129 1785 1092 1334 1117 2919 2946 15185 Kills 257 | . . 1 4 . . . . . . . 10 . . 25 6 6 . . 2 8 9 4 17 24 9 5 5 4 6 8 23 11 70 Allies Corrupted 10 | . . . . . . . . . . . . . . . . . . . . . . . 2 . 2 . 3 . . . 1 . 2 Allies Melted . | . . . . . . . . . . . . . . . . . . . . . . . . . . . . . . . . . . Field Lobotomies 4 | . . . . . . . . . . . . 3 . . . . . . . . . . . . . . . . . . . 1 . Intel | -11 -10 -10 -9 -9 -9 -8 -8 -8 -8 -8 -7 -7 -7 -7 -7 -7 -6 -6 -6 -6 -5 -5 -5 -5 -4 -4 -3 -3 -3 -3 -2 -2 -1 ------- Run | Scr Mat Min Mat Min Exi Min Mat Gar Mat Gar Fac Was Fac Gar Fac Gar Fac Was Fac Gar Fac Gar Fac Gar Fac Gar Res Gar Res Gar Res Gar Acc Robot Analysis Total 1 | . . . . . . . . . 1 . . . . . . . . . . . . . . . . . . . . . . . . Derelict Logs Recovered 2 | . . 1 . 1 . . . . . . . . . . . . . . . . . . . . . . . . . . . . . Drone Launches 44 | . . 1 5 . . . 3 . . . 6 . . . . . . . . . . . . . 14 . 6 . 9 . . . . Drone Recoveries 30 | . . 1 5 . . . 3 . . . 3 . . . . . . . . . . . . . 8 . 4 . 6 . . . . Exploration | -11 -10 -10 -9 -9 -9 -8 -8 -8 -8 -8 -7 -7 -7 -7 -7 -7 -6 -6 -6 -6 -5 -5 -5 -5 -4 -4 -3 -3 -3 -3 -2 -2 -1 ------------- Run | Scr Mat Min Mat Min Exi Min Mat Gar Mat Gar Fac Was Fac Gar Fac Gar Fac Was Fac Gar Fac Gar Fac Gar Fac Gar Res Gar Res Gar Res Gar Acc Turns Passed 39843 | 57 262 709 423 893 361 238 226 947 1509 1063 3304 1503 135 1276 1770 1432 48 355 474 1155 1088 1056 1689 1471 2272 1480 1453 1508 2083 1964 1570 1960 2109 Spaces Moved 20710 | 45 216 553 206 606 256 152 186 526 670 461 1719 435 98 654 1164 809 38 251 337 773 619 614 953 829 1148 851 681 631 806 785 685 923 1030 Core 2 | 2 . . . . . . . . . . . . . . . . . . . . . . . . . . . . . . . . . Treads 7598 | . . 4 70 . . . . 63 326 461 639 . . 185 2 128 . . . . 102 74 288 121 18 126 131 631 806 785 685 923 1030 Legs 641 | . . . . . . . . . . . 631 10 . . . . . . . . . . . . . . . . . . . . . Wheels 12469 | 43 216 549 136 606 256 152 186 463 344 . 449 425 98 469 1162 681 38 251 337 773 517 540 665 708 1130 725 550 . . . . . . Hover . | . . . . . . . . . . . . . . . . . . . . . . . . . . . . . . . . . . Flight . | . . . . . . . . . . . . . . . . . . . . . . . . . . . . . . . . . . Fastest Speed 50 | 50 100 100 110 140 140 110 110 110 120 173 130 120 130 130 130 130 120 120 120 110 140 140 130 140 140 140 140 185 190 200 187 172 165 Average Speed 155 | 97 102 100 162 140 140 137 110 127 156 192 168 133 130 169 132 145 120 120 120 122 146 144 152 156 154 148 153 189 192 200 191 180 168 Slowest Speed 270 | 100 110 200 220 140 140 140 110 240 225 220 270 270 130 265 220 240 120 120 120 140 180 180 180 200 200 200 200 190 200 200 200 205 172 Overloaded Moves . | . . . . . . . . . . . . . . . . . . . . . . . . . . . . . . . . . . Propulsion Burnouts . | . . . . . . . . . . . . . . . . . . . . . . . . . . . . . . . . . . Robots Hopped 2 | . . . . . . . . . . . . . . . . . . . . . . 2 . . . . . . . . . . . Cave-ins Triggered . | . . . . . . . . . . . . . . . . . . . . . . . . . . . . . . . . . . Exploration Rate (%) 52 | 3 46 68 33 99 64 42 19 69 59 56 44 96 4 83 40 77 1 86 7 77 23 69 22 77 41 96 24 81 33 96 23 94 18 Regions Visited 33 Branch Regions 4 Pre-discovered Areas . | . . . . . . . . . . . . . . . . . . . . . . . . . . . . . . . . . . Known Exits Taken 12 | . . . . . . 1 1 . 1 . . . 1 . 1 . . . 1 . 1 . 1 . 1 . 1 . 1 . 1 . . Unknown Exits Taken 6 | 1 1 1 1 1 1 . . . . . . . . . . . . . . . . . . . . . . . . . . . . Scrap Searched 4 | . . 2 . 1 . 1 . . . . . . . . . . . . . . . . . . . . . . . . . . . Spaces Dug 115 | . . . . . . 5 3 6 7 . 9 9 . . 3 . . . 2 . . . 1 . 39 . 4 . 2 1 18 1 5 Terrain Destroyed 1223 | . . . 22 13 . 22 3 16 10 9 21 99 . . 22 106 . 162 2 23 10 127 60 5 148 72 11 4 3 79 23 8 143 Melee 36 | . . . . . . . 3 6 7 . 4 . . . 1 . . . 2 . . . . . . . . . 1 . 11 1 . Projectile 118 | . . . . . . . . . 3 . 8 2 . . 3 . . . . 1 1 . 7 . 48 4 11 . 2 3 12 7 6 AOE 1069 | . . . 22 13 . 22 . 10 . 9 9 97 . . 18 106 . 162 . 22 9 127 53 5 100 68 . 4 . 76 . . 137 Terrain Rammed . | . . . . . . . . . . . . . . . . . . . . . . . . . . . . . . . . . . Walls Destroyed . | . . . . . . . . . . . . . . . . . . . . . . . . . . . . . . . . . . Machines Disabled . | . . . . . . . . . . . . . . . . . . . . . . . . . . . . . . . . . . Actions | -11 -10 -10 -9 -9 -9 -8 -8 -8 -8 -8 -7 -7 -7 -7 -7 -7 -6 -6 -6 -6 -5 -5 -5 -5 -4 -4 -3 -3 -3 -3 -2 -2 -1 --------- Run | Scr Mat Min Mat Min Exi Min Mat Gar Mat Gar Fac Was Fac Gar Fac Gar Fac Was Fac Gar Fac Gar Fac Gar Fac Gar Res Gar Res Gar Res Gar Acc Total 26610 | 55 244 656 269 646 258 165 202 691 912 565 2016 1304 105 771 1347 1019 42 285 382 940 759 760 1151 976 1517 1005 963 874 1255 1135 884 1138 1319 Wait 2778 | 2 7 56 4 33 . 2 3 27 59 17 94 803 8 35 96 28 . 3 6 46 48 38 81 38 149 33 96 113 309 256 61 72 155 Move 20669 | 44 215 552 205 605 255 151 185 524 670 460 1719 434 97 652 1163 807 38 250 337 771 618 608 952 827 1147 850 681 630 805 783 684 921 1029 Hop 2 | . . . . . . . . . . . . . . . . . . . . . . 2 . . . . . . . . . . . Pick Up 385 | 3 9 3 14 1 1 . . 13 15 10 27 10 . 9 17 24 1 4 2 15 10 20 9 9 26 18 19 18 15 17 15 21 10 Fast Attach 106 | 6 2 2 2 . . . 2 1 9 4 11 3 . 2 1 2 . 1 2 . 5 . 11 . 9 2 9 2 10 . 4 2 2 Attach 208 | . . 2 3 . . 1 3 3 7 7 11 5 . 1 6 14 2 1 3 10 7 16 9 6 21 5 18 10 3 4 12 8 10 Detach 43 | . . . . . . . 1 . . . 2 2 . . . . 1 1 . 5 2 2 5 1 7 2 4 1 1 1 2 1 2 Swap 421 | . 4 13 10 3 2 2 3 16 11 6 37 8 . 11 16 12 . 1 4 9 16 8 10 14 27 20 23 19 36 16 27 18 19 Drop 310 | . 2 4 14 2 . . 1 10 17 3 32 3 . 6 10 18 . 5 3 7 11 16 16 3 17 10 13 14 26 14 18 12 3 Fire 1252 | . 5 24 17 2 . 9 . 51 116 54 73 36 . 35 27 35 . 19 18 33 41 25 58 37 109 35 91 45 43 38 46 41 89 Melee 137 | . . . . . . . 4 14 8 . 10 . . . 11 5 . . 7 4 . . . 1 4 12 7 2 5 . 15 28 . Ram . | . . . . . . . . . . . . . . . . . . . . . . . . . . . . . . . . . . Kick . | . . . . . . . . . . . . . . . . . . . . . . . . . . . . . . . . . . Crush 2 | . . . . . . . . . . . . . . . . . . . . . . . . . . . 1 . 1 . . . . Escape Stasis 293 | . . . . . . . . 32 . 4 . . . 20 . 74 . . . 40 . 25 . 40 . 18 . 20 . 6 . 14 . Rewire 3 | . . . . . . . . . . . . . . . . . . . . . 1 . . . . . 1 . 1 . . . . Trap . | . . . . . . . . . . . . . . . . . . . . . . . . . . . . . . . . . . Miscellaneous 1 | . . . . . . . . . . . . . . . . . . . . . . . . . 1 . . . . . . . . Route ------- -11/Scrapyard -10/Materials (discovered 2 exits: *Min x2) -10/Mines -9/Materials (discovered 2 exits: Mat / *Min) -9/Mines (discovered 3 exits: *Mat x2 / *Exi) -9/Exiles -8/Mines -8/Materials -8/Garrison (discovered 2 exits: *Mat x2) -8/Materials (discovered 2 exits: *Fac / Gar) -8/Garrison (discovered 2 exits: *Fac x2) -7/Factory (discovered 2 exits: Low x2) -7/Waste -7/Factory -7/Garrison (discovered 3 exits: *Fac x3) -7/Factory (discovered 4 exits: [*Fac x2] / *Low / Gar) -7/Garrison (discovered 3 exits: [*Fac x3]) -6/Factory -6/Waste -6/Factory -6/Garrison (discovered 3 exits: *Fac x3) -5/Factory -5/Garrison (discovered 3 exits: *Fac x3) -5/Factory (discovered 3 exits: [*Upp] / [*Ext] / Gar) -5/Garrison (discovered 2 exits: *Fac x2) -4/Factory (discovered 4 exits: *Res x2 / [*Upp] / Gar) -4/Garrison (discovered 3 exits: *Res x3) -3/Research -3/Garrison (discovered 2 exits: *Res x2) -3/Research (discovered 3 exits: *Res / [*Qua] / Gar) -3/Garrison (discovered 3 exits: *Res x3) -2/Research (discovered 3 exits: *Acc / [*Tes] / Gar) -2/Garrison (discovered 3 exits: *Acc x3) -1/Access To Epsilon Eridani History --------- Turn | Location | Event 11 | -11/Scrapyard | Discovered new exit (range 15) 58 | -11/Scrapyard | Entered Materials 167 | -10/Materials | Discovered new exit (range 2) 255 | -10/Materials | Discovered new exit (range 12) 310 | -10/Materials | Build established: Mutant 320 | -10/Materials | Entered Mines 573 | -10/Mines | Assisted by bots powering up and referring to "LRC-V3" 690 | -10/Mines | Learned 4 Materials zone layouts 715 | -10/Mines | Found the Drone Emporium 720 | -10/Mines | Found Prototype Device 720 | -10/Mines | Identified Thief Drone Bay 966 | -10/Mines | Discovered new exit (range 6) 1029 | -10/Mines | Entered Materials 1029 | -9/Materials | Accompanied by 1 ally 1029 | -9/Materials | Evolved 2 slots: Utility x2 1030 | -9/Materials | Identified exit to Materials 1070 | -9/Materials | Discovered new exit (range 26) 1452 | -9/Materials | Entered Mines 1791 | -9/Mines | A weapon hastily lodged in a ceiling crevice suddenly fell to the ground 1854 | -9/Mines | Discovered exit to Materials (range 5) 2027 | -9/Mines | Discovered exit to Materials (range 5) 2339 | -9/Mines | Deemed a non-threat by the Exiles lab entrance 2339 | -9/Mines | Discovered new exit (range 5) 2345 | -9/Mines | Entered Exiles 2378 | -9/Exiles | Met 8R-AWN 2404 | -9/Exiles | Met EX-HEX 2448 | -9/Exiles | Met EX-BIN 2464 | -9/Exiles | Aligned with FarCom system 2466 | -9/Exiles | Given EX-Vault access code 2498 | -9/Exiles | Opened EX-Vault 2506 | -9/Exiles | Found Field Lobotomy Kit 2540 | -9/Exiles | Warned to stay clear of 0b10 Research branches 2582 | -9/Exiles | Met EX-DEC 2690 | -9/Exiles | Discovered new exit (range 14) 2706 | -9/Exiles | Left Exiles lab with Field Lobotomy Kit 2706 | -9/Exiles | Entered Mines 2934 | -8/Mines | Discovered exit to Materials (range 11) 2944 | -8/Mines | Entered Materials 2944 | -8/Materials | Evolved 2 slots: Propulsion x1, Utility x1 3168 | -8/Materials | Identified exit to Garrison 3170 | -8/Materials | Entered Garrison 3254 | -8/Garrison | Triggered checkpoint 3300 | -8/Garrison | Garrison Relay disabled 3514 | -8/Garrison | Triggered checkpoint 3704 | -8/Garrison | Discovered new exit (range 15) 3766 | -8/Garrison | Triggered checkpoint 3806 | -8/Garrison | Garrison Relay disabled 3933 | -8/Garrison | Discovered new exit (range 15) 3958 | -8/Garrison | Installed Relay Interface Framework 3996 | -8/Garrison | Triggered checkpoint 4040 | -8/Garrison | Garrison Relay disabled 4093 | -8/Garrison | Build established: Hauler-Mutant 4117 | -8/Garrison | Entered Materials 4517 | -8/Materials | First assault squad dispatched 4580 | -8/Materials | Lost 3 parts (2n1w) 4820 | -8/Materials | Discovered new exit (range 15) 4879 | -8/Materials | Garrison activated, responded to threat 5189 | -8/Materials | Lost 3 parts (1p2u) 5625 | -8/Materials | Identified exit to Garrison 5626 | -8/Materials | Entered Garrison 5708 | -8/Garrison | Triggered checkpoint 5758 | -8/Garrison | Garrison Relay disabled 5870 | -8/Garrison | Triggered checkpoint 5897 | -8/Garrison | Triggered checkpoint 5913 | -8/Garrison | Core integrity fell below 50% 5956 | -8/Garrison | Destroyed 8 combat bots 5957 | -8/Garrison | Lost 7 parts (2p2n1u2w) 6173 | -8/Garrison | Triggered checkpoint 6276 | -8/Garrison | Discovered new exit (range 10) 6591 | -8/Garrison | Discovered new exit (range 10) 6627 | -8/Garrison | Expanded RIF knowledge: Program Shield 6689 | -8/Garrison | Entered Factory 6689 | -7/Factory | Evolved 2 slots: Utility x2 6845 | -7/Factory | Lost 4 parts (1p1n1u1w) 7335 | -7/Factory | Build established: Bothacker-Mutant 7498 | -7/Factory | Fabricated Y-45 Defender? 7643 | -7/Factory | Fabricated Y-45 Defender? 7676 | -7/Factory | Identified exit to Lower Caves 7683 | -7/Factory | Local fabrication network quarantined 8395 | -7/Factory | Repaired Hcp. Storage Unit? 8464 | -7/Factory | Repaired Lrg. Storage Unit 9529 | -7/Factory | System corruption reached 10% 9993 | -7/Factory | Sucked down chute 9993 | -7/Factory | Entered Waste 10004 | -7/Waste | Spotted C-40 Crusher 10010 | -7/Waste | Assimilated C-40 Crusher with FLK Orb 10021 | -7/Waste | Spotted C-40 Crusher 10076 | -7/Waste | Spotted C-40 Crusher 10078 | -7/Waste | Spotted C-40 Crusher 10089 | -7/Waste | Assimilated C-40 Crusher with FLK Orb 10106 | -7/Waste | Destroyed C-40 Crusher 10183 | -7/Waste | Destroyed C-40 Crusher 10189 | -7/Waste | Spotted C-40 Crusher 10220 | -7/Waste | Spotted C-40 Crusher 10290 | -7/Waste | Destroyed C-40 Crusher 10322 | -7/Waste | Crushed by Compactor (1 part destroyed, 2 dropped) 10329 | -7/Waste | Assimilated C-40 Crusher with FLK Orb 10389 | -7/Waste | Found Damper Plating 10487 | -7/Waste | Warlord forces began an assault 10658 | -7/Waste | Discovered new exit (range 13) 11496 | -7/Waste | Entered Factory 11496 | -7/Factory | Accompanied by 20 allies 11619 | -7/Factory | Identified exit to Garrison 11631 | -7/Factory | Entered Garrison 11631 | -7/Garrison | Accompanied by 13 allies 11682 | -7/Garrison | Triggered checkpoint 11778 | -7/Garrison | Triggered checkpoint 11815 | -7/Garrison | Garrison Relay disabled 11896 | -7/Garrison | Triggered checkpoint 11943 | -7/Garrison | Discovered new exit (range 15) 12042 | -7/Garrison | Core integrity fell below 50% 12075 | -7/Garrison | Lost 3 parts (1u2w) 12344 | -7/Garrison | Discovered new exit (range 14) 12470 | -7/Garrison | Triggered checkpoint 12493 | -7/Garrison | Garrison Relay disabled 12656 | -7/Garrison | Triggered checkpoint 12714 | -7/Garrison | Triggered checkpoint 12866 | -7/Garrison | Discovered new exit (range 8) 12897 | -7/Garrison | Expanded RIF knowledge: Watcher Feeds 12907 | -7/Garrison | Entered Factory 13109 | -7/Factory | Fabricated Y-45 Defender (x2) 13658 | -7/Factory | Discovered new exit (range 15) 14009 | -7/Factory | Discovered exit to Lower Caves (range 15) 14204 | -7/Factory | Repaired Smartbomb Launcher? 14305 | -7/Factory | Fabricated B-36 Bruiser? 14463 | -7/Factory | Fabricated B-36 Bruiser (x3) 14584 | -7/Factory | Discovered new exit (range 9) 14660 | -7/Factory | Identified exit to Garrison 14677 | -7/Factory | Entered Garrison 14677 | -7/Garrison | Accompanied by 6 allies 14712 | -7/Garrison | Triggered checkpoint 14776 | -7/Garrison | Garrison Relay disabled 14934 | -7/Garrison | Triggered checkpoint 15147 | -7/Garrison | Discovered new exit (range 12) 15218 | -7/Garrison | Triggered checkpoint 15260 | -7/Garrison | Garrison Relay disabled 15440 | -7/Garrison | Triggered checkpoint 15445 | -7/Garrison | Discovered new exit (range 28) 15494 | -7/Garrison | Triggered checkpoint 15654 | -7/Garrison | Triggered checkpoint 15655 | -7/Garrison | Core integrity fell below 20% 15707 | -7/Garrison | Garrison Relay disabled 15894 | -7/Garrison | Triggered checkpoint 15931 | -7/Garrison | Garrison Relay disabled 16070 | -7/Garrison | Discovered new exit (range 14) 16102 | -7/Garrison | Expanded RIF knowledge: Patrol Navigation 16109 | -7/Garrison | Entered Factory 16109 | -6/Factory | Accompanied by 2 allies 16109 | -6/Factory | Evolved 2 slots: Propulsion x1, Utility x1 16157 | -6/Factory | Sucked down chute 16157 | -6/Factory | Entered Waste 16158 | -6/Waste | Met a frightened Derelict 16166 | -6/Waste | Spotted C-40 Crusher 16190 | -6/Waste | 2 allies followed down the chute 16191 | -6/Waste | Spotted C-40 Crusher 16191 | -6/Waste | Spotted C-40 Crusher 16191 | -6/Waste | Destroyed C-40 Crusher 16204 | -6/Waste | Destroyed C-40 Crusher 16217 | -6/Waste | Destroyed C-40 Crusher 16219 | -6/Waste | Spotted C-40 Crusher 16231 | -6/Waste | Destroyed C-40 Crusher 16260 | -6/Waste | Spotted C-40 Crusher 16262 | -6/Waste | Spotted C-40 Crusher 16270 | -6/Waste | Destroyed C-40 Crusher 16297 | -6/Waste | Destroyed C-40 Crusher 16404 | -6/Waste | Build established: Botlord-Mutant 16466 | -6/Waste | Found Antimissile System 16491 | -6/Waste | Discovered new exit (range 12) 16512 | -6/Waste | Entered Factory 16512 | -6/Factory | Accompanied by 2 allies 16985 | -6/Factory | Identified exit to Garrison 16986 | -6/Factory | Entered Garrison 16986 | -6/Garrison | Accompanied by 3 allies 17059 | -6/Garrison | Triggered checkpoint 17392 | -6/Garrison | Triggered checkpoint 17397 | -6/Garrison | Triggered checkpoint 17408 | -6/Garrison | Triggered checkpoint 17508 | -6/Garrison | Discovered new exit (range 12) 17618 | -6/Garrison | Triggered checkpoint 17656 | -6/Garrison | Garrison Relay disabled 17777 | -6/Garrison | Discovered new exit (range 11) 17869 | -6/Garrison | Discovered new exit (range 12) 17891 | -6/Garrison | Expanded RIF knowledge: Autooverride 17928 | -6/Garrison | Triggered checkpoint 17976 | -6/Garrison | Garrison Relay disabled 18141 | -6/Garrison | Entered Factory 18141 | -5/Factory | Accompanied by 2 allies 18141 | -5/Factory | Evolved 2 slots: Utility x2 18613 | -5/Factory | Fabricated Y-45 Defender (x2) 19222 | -5/Factory | Identified exit to Garrison 19229 | -5/Factory | Entered Garrison 19229 | -5/Garrison | Accompanied by 1 ally 19268 | -5/Garrison | Triggered checkpoint 19340 | -5/Garrison | Triggered checkpoint 19411 | -5/Garrison | Triggered checkpoint 19440 | -5/Garrison | Destroyed 11 combat bots 19471 | -5/Garrison | Triggered checkpoint 19537 | -5/Garrison | Discovered new exit (range 9) 19554 | -5/Garrison | Triggered checkpoint 19591 | -5/Garrison | Garrison Relay disabled 19724 | -5/Garrison | Triggered checkpoint 19775 | -5/Garrison | Discovered new exit (range 8) 19796 | -5/Garrison | Triggered checkpoint 19832 | -5/Garrison | Garrison Relay disabled 19963 | -5/Garrison | Discovered new exit (range 10) 19984 | -5/Garrison | Expanded RIF knowledge: Zone Cloak 20024 | -5/Garrison | Triggered checkpoint 20034 | -5/Garrison | Garrison Relay disabled 20285 | -5/Garrison | Entered Factory 20285 | -5/Factory | Accompanied by 3 allies 20585 | -5/Factory | First assault squad dispatched 21145 | -5/Factory | Discovered new exit (range 6) 21196 | -5/Factory | Repaired Broken Cld. Plasma Cannon? 21857 | -5/Factory | Discovered new exit (range 15) 21969 | -5/Factory | Identified exit to Garrison 21974 | -5/Factory | Entered Garrison 21974 | -5/Garrison | Accompanied by 4 allies 22080 | -5/Garrison | Triggered checkpoint 22211 | -5/Garrison | Garrison Relay disabled 22367 | -5/Garrison | Triggered checkpoint 22400 | -5/Garrison | Triggered checkpoint 22444 | -5/Garrison | Triggered checkpoint 22608 | -5/Garrison | Triggered checkpoint 22623 | -5/Garrison | Garrison Relay disabled 22748 | -5/Garrison | Discovered new exit (range 9) 22810 | -5/Garrison | Triggered checkpoint 23172 | -5/Garrison | Discovered new exit (range 8) 23196 | -5/Garrison | Expanded RIF knowledge: Structural Interface 23445 | -5/Garrison | Entered Factory 23445 | -4/Factory | Accompanied by 8 allies 23445 | -4/Factory | Evolved 2 slots: Utility x2 23585 | -4/Factory | Discovered new exit (range 4) 23816 | -4/Factory | Repaired Cld. Plasma Cannon 24216 | -4/Factory | Discovered new exit (range 22) 24855 | -4/Factory | Repaired Cld. Plasma Cannon 25037 | -4/Factory | Lost 3 parts (1n1u1w) 25452 | -4/Factory | Discovered new exit (range 38) 25715 | -4/Factory | Identified exit to Garrison 25717 | -4/Factory | Entered Garrison 25717 | -4/Garrison | Accompanied by 1 ally 25760 | -4/Garrison | Triggered checkpoint 25786 | -4/Garrison | Garrison Relay disabled 25936 | -4/Garrison | Triggered checkpoint 25998 | -4/Garrison | Triggered checkpoint 26117 | -4/Garrison | Discovered new exit (range 15) 26196 | -4/Garrison | Triggered checkpoint 26249 | -4/Garrison | Garrison Relay disabled 26328 | -4/Garrison | Triggered checkpoint 26491 | -4/Garrison | Triggered checkpoint 26715 | -4/Garrison | Garrison Relay disabled 26757 | -4/Garrison | Discovered new exit (range 14) 26836 | -4/Garrison | Triggered checkpoint 26934 | -4/Garrison | Discovered new exit (range 8) 26951 | -4/Garrison | Expanded RIF knowledge: Zone Cloak 26987 | -4/Garrison | Garrison Relay disabled 27197 | -4/Garrison | Entered Research 27197 | -3/Research | Evolved 2 slots: Utility x2 27447 | -3/Research | First assault squad dispatched 27815 | -3/Research | Found Antimissile System 28382 | -3/Research | Lost 5 parts (1n2u2w) 28498 | -3/Research | Lost 4 parts (1p3u) 28616 | -3/Research | Spotted B-86 Titan 28650 | -3/Research | Identified exit to Garrison 28650 | -3/Research | Entered Garrison 28675 | -3/Garrison | Expanded RIF knowledge: Autoassimilate 28706 | -3/Garrison | Triggered checkpoint 28984 | -3/Garrison | Triggered checkpoint 29010 | -3/Garrison | Garrison Relay disabled 29132 | -3/Garrison | Triggered checkpoint 29148 | -3/Garrison | Triggered checkpoint 29172 | -3/Garrison | Triggered checkpoint 29649 | -3/Garrison | Discovered new exit (range 14) 29739 | -3/Garrison | Garrison Relay disabled 29908 | -3/Garrison | Discovered new exit (range 10) 30064 | -3/Garrison | Triggered checkpoint 30158 | -3/Garrison | Entered Research 30158 | -3/Research | Accompanied by 2 allies 30279 | -3/Research | Repaired Smartbomb Launcher 30457 | -3/Research | Discovered new exit (range 29) 30654 | -3/Research | Discovered new exit (range 28) 31393 | -3/Research | Found Unknown Launcher 31393 | -3/Research | Identified Gamma Bomb Array 31806 | -3/Research | System corruption reached 10% 32229 | -3/Research | Identified exit to Garrison 32241 | -3/Research | Entered Garrison 32576 | -3/Garrison | Garrison Relay disabled 32727 | -3/Garrison | Triggered checkpoint 32729 | -3/Garrison | Triggered checkpoint 32770 | -3/Garrison | Destroyed 9 combat bots 32892 | -3/Garrison | Triggered checkpoint 33218 | -3/Garrison | Discovered new exit (range 13) 33503 | -3/Garrison | Discovered new exit (range 14) 33586 | -3/Garrison | Triggered checkpoint 33651 | -3/Garrison | Garrison Relay disabled 33852 | -3/Garrison | Discovered new exit (range 3) 33866 | -3/Garrison | Expanded RIF knowledge: Crosswire 33922 | -3/Garrison | Garrison Relay disabled 33990 | -3/Garrison | Triggered checkpoint 34205 | -3/Garrison | Entered Research 34205 | -2/Research | Accompanied by 4 allies 34205 | -2/Research | Evolved 2 slots: Utility x2 34518 | -2/Research | Discovered new exit (range 32) 34533 | -2/Research | Discovered new exit (range 28) 34555 | -2/Research | Found Prototype Processor 34853 | -2/Research | Identified exit to Access 35762 | -2/Research | Identified Exp. Core Analyzer 35774 | -2/Research | Identified exit to Garrison 35775 | -2/Research | Entered Garrison 35775 | -2/Garrison | Accompanied by 1 ally 35908 | -2/Garrison | Triggered checkpoint 35922 | -2/Garrison | Garrison Relay disabled 36065 | -2/Garrison | System corruption reached 10% 36112 | -2/Garrison | Lost 4 parts (1n3u) 36416 | -2/Garrison | Discovered exit to Access (range 2) 36568 | -2/Garrison | Triggered checkpoint 36568 | -2/Garrison | Spotted B-90 Cyclops 36569 | -2/Garrison | Assimilated B-90 Cyclops with FLK Orb 36578 | -2/Garrison | Triggered checkpoint 36586 | -2/Garrison | Triggered checkpoint 36767 | -2/Garrison | Garrison Relay disabled 36839 | -2/Garrison | Discovered exit to Access (range 15) 36879 | -2/Garrison | Expanded RIF knowledge: Hotswap 37087 | -2/Garrison | Discovered exit to Access (range 10) 37198 | -2/Garrison | Triggered checkpoint 37385 | -2/Garrison | Garrison Relay disabled 37735 | -2/Garrison | Entered Access 37735 | -1/Access | Accompanied by 9 allies 37735 | -1/Access | Evolved 2 slots: Utility x2 38490 | -1/Access | Identified exit to Surface 38622 | -1/Access | Spotted B-99 Colossus 38623 | -1/Access | Autoassimilated Colossus 10a with RIF 39144 | -1/Access | Spotted B-99 Colossus 39146 | -1/Access | Assimilated Colossus 10b with formatsys_high 39154 | -1/Access | Spotted B-99 Colossus 39180 | -1/Access | Allies destroyed B-99 Colossus 39235 | -1/Access | First assault squad dispatched 39400 | -1/Access | Energy Cycler disabled 39498 | -1/Access | High security lockdown imminent 39578 | -1/Access | High security lockdown engaged 39692 | -1/Access | Destroyed Colossus 10b 39820 | -1/Access | Spotted Investigator 39820 | -1/Access | Allies destroyed Investigator 39838 | -1/Access | Spotted Executioner 39838 | -1/Access | Spotted Executioner 39838 | -1/Access | Spotted Striker 39839 | -1/Access | Destroyed Striker 39844 | *** | Escaped! Last Messages --------------- 39838_ Slug penetrates Striker. 39839_ Slug penetrates Colossus 10a. 39839_ Destroyed Adv. Reaction Control System. 39839_ U-05 Engineer destroyed. 39839_ Striker destroyed. 39840_ K-01 Serf collects debris. 39842_ Jacked B-74 Champion... >>overwrite_iff Rewriting IFF filter. 39842_ Executioner knocked back. 39842_ Slug penetrates Executioner. 39842_ Slug penetrates Colossus 10a. 39843_ Colossus 10a destroyed. 39843_ Slug penetrates Annihilator 9a. 39843_ Annihilator 9a suffers critical hit. 39843_ Annihilator 9a destroyed. 39843_ K-01 Serf collects debris. 39844_ G-73 Enforcer knocked back. [Achievement: 40k Club] [Achievement: 50k Club] Map ----- +----------------------------------------------------+ | ############?######+## ####### ###+####?????# | | ############? ##### #????????????# ! | | ?###########? ]]] # % #????????????### | | ?###########? ]]] ! %= % #??????????????? | | ?###########??]] * = = #??????????????? | | ??##########??? % % [ #??????????????? | | ??##########???? *% dp[ #??????????????? | | ??##########????? * */=d########??????????????? | | ?###########?????? EC# ####???????????????? | | ?###########??????# % # ###???????????????? | | ?################### = ####???????????????? | | ?################### ####???????????????? | | ?################### % ####???????????????? | | ?################### %E] ####???????????????? | | ?################### ###########??????### | | ####### ######### ############?????""" | | T" ######### ############ ""S"" | | "" #########" ############ "" | | ####### ########?" % ############ | | ##### ##########" ##????????## ! | | ##### ########## ##????????## | | ##### ########## % ##????????## | | ##### ########## == ##???????#########/# | | ##### ########## [ ##???? ?# | | ######## ########## "" ##??? ?# | | ######## ########## "@ ##?? # # | | ####### ######### i ##? i ^ # | | #??###### ## ^ # | | ######### # g # | | ####### ######### %# # | | ######## ######### b g=% # | | ######## ########## % % = = # | | ######## ########## " =##%[ # | | ######## ##########"" # # # | | ######## ##########T !% " # | | ######## ##########"" = # ## # | | ######## ##########"" %== # ### # | | ####### #########""= # ###### | | ####### "" =%!%[[ !!! !! % | | ####### "T =!!%!%[ k =%! %== ####+## | | ####### ############## = ##### # [ | | ######################### # # ########### | | ????????????????????????# # ### #?????????# "" | | ????????????????????????### ##??##?????????# """ | | ???????????????????????????##??????????????# T" | | ???????????????????????????????????????????# """ | | ???????????????????????????????????????????# "" | | ???????????????????????????????????????????# | | ???????????????????????????????????????????# | | ???????????????????????????????????????????# | +----------------------------------------------------+ Best States ------------- Heat Dissipation 77 Coolant Potential 65 Energy Generation 25 Energy Capacity 1350 Matter Stores 300 Matter Capacity 300 Sight Range 16 Terrain Scan Density 10 Armor Coverage 2400 Resistance: EM 90 Power Shielding 90 Propulsion Shielding 33 Point Defense Rating 240 Phase Shifting 10 Evasion (%) 50 Targeting Accuracy 8 Core Analysis 8 Recoil Reduction 4 Offensive Hacking 14 Defensive Hacking 14 Relay Coupler Types 147 Relay Coupler Value 8 Item Schematics ----------------- Lrg. Storage Unit | -8/Materials | Scanalyzed Imp. Heavy Treads | -4/Factory | Scanalyzed Imp. Remote Datajack | -4/Factory | Scanalyzed Robot Schematics ------------------ Y-45 Defender | -7/Factory | Hacked G-47 Trooper | -7/Factory | Hacked Fabricated ------------ Y-45 Defender | x2 | -7/Factory Y-45 Defender | x2 | -7/Factory Y-45 Defender | x2 | -7/Factory B-36 Bruiser | x3 | -7/Factory | Preloaded B-36 Bruiser | x3 | -7/Factory | Preloaded Y-45 Defender | x2 | -5/Factory Alien Tech Used ----------------- None Achievements -------------- 40k Club 50k Club Assassin Beloved Generalissimo No Explosion For You Packrat Turtlemind War Machine We Are Legion Challenges ------------ None Game ------ Seed StorageCoordinationMultirail Manual? 0 Play Time 09:00:39 Cumulative 95.5 hours Start 2021.08.10 @ 22:31:51 End 2021.08.12 @ 01:26:23 Sessions 7 Manual Loads 0 Difficulty Rogue Special Mode None Game No. 30 Rogue 30 Adventurer 0 Explorer 0 Win Type 0 Total 3 Types 3/0/0/0/0/0/0/0/0 Lore% 54 Gallery% 68 Achievement% 54 Wizard Run 0 Options --------- ASCII 0 Keyboard 0 Movement Numpad Keybinds 0 Fullscreen 1 Font 14/SmallcapsGlow Map View 84x54 Tactical HUD 1 Map Filters NONE Filters NONE Steam 1 RUN: 0150711d-3170-43cd-ac80-759a6d0c5ac0